Workbook

Sheet RANKING 2016
A1: RANKING NACIONAL DE ENDURANCE ECUADOR 2015
A3: CAMPEONATO DE EQUIPOS
C4: EQUIPO | D4: CAPITAN | E4: PUNTAJE | F4: JINETES
A5: 1 | B5: CAMPEÓN NACIONAL | C5: =+EQUIPOS!C8 -> ENDURANCE AZUAY | D5: =+EQUIPOS!D8 -> MARIA CONSUELO VELEZ | E5: =+EQUIPOS!U8 -> 2793.55 | F5: =+EQUIPOS!E8 -> PABLO VINTIMILLA | G5: =+EQUIPOS!F8 -> BERNARDA GONZALEZ | H5: =+EQUIPOS!G8 -> CLAUDIA LOYOLA | I5: =+EQUIPOS!H8 -> HECTOR ALMEIDA | J5: =+EQUIPOS!I8 -> JAIME BURBANO | K5: =+EQUIPOS!J8 -> MARIA CONSUELO VELEZ
A6: 2 | B6: VICECAMPEÓN NACIONAL | C6: =+EQUIPOS!C9 -> HACIENDA HATO VERDE | D6: =+EQUIPOS!D9 -> CESAR MORABOWEN AGUIRRE | E6: =+EQUIPOS!U9 -> 2246.8 | F6: =+EQUIPOS!E9 -> CESAR MORABOWEN MOSQUERA | G6: =+EQUIPOS!F9 -> JUAN ANTONIO LEON | H6: =+EQUIPOS!G9 -> JORGE DAVALOS | I6: =+EQUIPOS!H9 -> FABRICIO RAMIREZ | J6: =+EQUIPOS!I9 -> CESAR MORABOWEN AGUIRRE | K6: =+EQUIPOS!J9 -> MAHNKE LIESEL
A7: 3 | C7: =+EQUIPOS!C10 -> CACHAFAZ-SAN ALFONZO | D7: =+EQUIPOS!D10 -> ARTURO RIBADENEIRA | E7: =+EQUIPOS!U10 -> 824.08 | F7: =+EQUIPOS!E10 -> JOAQUINA DAVALOS | G7: =+EQUIPOS!F10 -> FRANCISCO FALCONÍ | H7: =+EQUIPOS!G10 -> FELIPE PORTILLA | I7: =+EQUIPOS!H10 -> JOSÉ ANDRADE | J7: =+EQUIPOS!I10 -> SOFÍA RIVADENEIRA | K7: =+EQUIPOS!J10 -> ARTURO RIBADENEIRA
A9: CATEGORÍA ELITE ABIERTA
C10: JINETE | D10: PUNTAJE
A11: 1 | B11: CAMPEÓN NACIONAL | C11: =+'ELITE ABIERTA'!D8 -> ALMEIDA AYALA HECTOR | D11: =+'ELITE ABIERTA'!O8 -> 760.34
A12: 2 | B12: VICECAMPEÓN NACIONAL | C12: =+'ELITE ABIERTA'!D9 -> MORABOWEN CESAR | D12: =+'ELITE ABIERTA'!O9 -> 673.48
A13: 3 | C13: =+'ELITE ABIERTA'!D10 -> WEEMAELS NATHALIE | D13: =+'ELITE ABIERTA'!O10 -> 644.8
A14: 4 | C14: =+'ELITE ABIERTA'!D11 -> VINTIMILLA PABLO | D14: =+'ELITE ABIERTA'!O11 -> 604.57
A15: 5 | C15: =+'ELITE ABIERTA'!D12 -> VELEZ MARIA CONSUELO | D15: =+'ELITE ABIERTA'!O12 -> 495.04
A17: CATEGORÍA ELITE JUVENIL
C18: JINETE | D18: PUNTAJE
A19: 1 | B19: CAMPEÓN NACIONAL | C19: =+'ELITE JUVENIL'!D8 -> GONZALEZ BERNARDA | D19: =+'ELITE JUVENIL'!O8 -> 1053.18
A20: 2 | B20: VICECAMPEÓN NACIONAL | C20: =+'ELITE JUVENIL'!D9 -> ANDRADE JOSE DANIEL | D20: =+'ELITE JUVENIL'!O9 -> 686.4
A21: 3 | C21: =+'ELITE JUVENIL'!D10 -> LOYOLA CLAUDIA MARIA | D21: =+'ELITE JUVENIL'!O10 -> 654.4
A22: 4 | C22: =+'ELITE JUVENIL'!D11 -> LOYOLA TEODORO ANDRES | D22: =+'ELITE JUVENIL'!O11 -> 438.7
A23: 5 | C23: =+'ELITE JUVENIL'!D12 -> LETORT BERNARDA | D23: =+'ELITE JUVENIL'!O12 -> 366
A25: CATEGORÍA ELITE MENORES
C26: JINETE | D26: PUNTAJE
A27: 1 | B27: CAMPEÓN NACIONAL | C27: =+'ELITE MENORES'!D8 -> MORABOWEN MOSQUERA CESAR | D27: =+'ELITE MENORES'!O8 -> 829.12
A29: CATEGORÍA ELITE CABALLOS
C30: JINETE | D30: JINETE/DUEÑO | E30: PUNTAJE
A31: 1 | B31: CAMPEÓN NACIONAL | C31: =+'ELITE CABALLOS'!D8 -> AVENTURERO | D31: =+'ELITE CABALLOS'!E8 -> HECTOR ALMEIDA AYALA | E31: =+'ELITE CABALLOS'!P8 -> 470.1
A32: 2 | B32: VICECAMPEÓN NACIONAL | C32: =+'ELITE CABALLOS'!D9 -> ANGOSTURA FRODO | D32: =+'ELITE CABALLOS'!E9 -> ARTURO RIBADENEIRA | E32: =+'ELITE CABALLOS'!P9 -> 454.4
A33: 3 | C33: =+'ELITE CABALLOS'!D10 -> CALEÑA CMB | D33: =+'ELITE CABALLOS'!E10 -> MORABOWEN CESAR | E33: =+'ELITE CABALLOS'!P10 -> 452.32
A34: 4 | C34: =+'ELITE CABALLOS'!D11 -> POLACO | D34: =+'ELITE CABALLOS'!E11 -> GONZALEZ BERNARDA | E34: =+'ELITE CABALLOS'!P11 -> 448.4
A35: 5 | C35: =+'ELITE CABALLOS'!D12 -> BIANCA | D35: =+'ELITE CABALLOS'!E12 -> VINTIMILLA PABLO | E35: =+'ELITE CABALLOS'!P12 -> 442.57
A37: CATEGORÍA BINOMIOS ABIERTA
C38: JINETE | D38: CABALLO | E38: PUNTAJE
A39: 1 | B39: CAMPEÓN NACIONAL | C39: =+'BINOMIOS ABIERTA'!D8 -> ALMEIDA AYALA HECTOR | D39: =+'BINOMIOS ABIERTA'!F8 -> AVENTURERO | E39: =+'BINOMIOS ABIERTA'!Q8 -> 470.1
A40: 2 | B40: VICECAMPEÓN NACIONAL | C40: =+'BINOMIOS ABIERTA'!D9 -> VINTIMILLA PABLO | D40: =+'BINOMIOS ABIERTA'!F9 -> BIANCA | E40: =+'BINOMIOS ABIERTA'!Q9 -> 442.57
A41: 3 | C41: =+'BINOMIOS ABIERTA'!D10 -> MORABOWEN CESAR | D41: =+'BINOMIOS ABIERTA'!F10 -> SERENATA CMB | E41: =+'BINOMIOS ABIERTA'!Q10 -> 421.88
A42: 4 | C42: =+'BINOMIOS ABIERTA'!D11 -> BURBANO VILLAVICENCIO JAIME | D42: =+'BINOMIOS ABIERTA'!F11 -> NEGRO EG | E42: =+'BINOMIOS ABIERTA'!Q11 -> 416.3
A43: 5 | C43: =+'BINOMIOS ABIERTA'!D12 -> MOYA MIGUEL ANGEL | D43: =+'BINOMIOS ABIERTA'!F12 -> DIAMANTE | E43: =+'BINOMIOS ABIERTA'!Q12 -> 398.4
A45: CATEGORÍA BINOMIOS LIVIANOS
C46: JINETE | D46: CABALLO | E46: PUNTAJE
A47: 1 | B47: CAMPEÓN NACIONAL | C47: =+'BINOMIOS LIVIANOS'!D8 -> MORABOWEN MOSQUERA CESAR | D47: =+'BINOMIOS LIVIANOS'!F8 -> CALEÑA CMB | E47: =+'BINOMIOS LIVIANOS'!Q8 -> 580.32
A48: 2 | B48: VICECAMPEÓN NACIONAL | C48: =+'BINOMIOS LIVIANOS'!D9 -> GONZALEZ BERNARDA | D48: =+'BINOMIOS LIVIANOS'!F9 -> KADIN | E48: =+'BINOMIOS LIVIANOS'!Q9 -> 480
A49: 3 | C49: =+'BINOMIOS LIVIANOS'!D10 -> GONZALEZ BERNARDA | D49: =+'BINOMIOS LIVIANOS'!F10 -> POLACO | E49: =+'BINOMIOS LIVIANOS'!Q10 -> 420.8
A50: 4 | C50: =+'BINOMIOS LIVIANOS'!D11 -> LOYOLA CLAUDIA MARIA | D50: =+'BINOMIOS LIVIANOS'!F11 -> KALA | E50: =+'BINOMIOS LIVIANOS'!Q11 -> 412.4
A51: 5 | C51: =+'BINOMIOS LIVIANOS'!D12 -> ANDRADE JOSE DANIEL | D51: =+'BINOMIOS LIVIANOS'!F12 -> ANGOSTURA FRODO | E51: =+'BINOMIOS LIVIANOS'!Q12 -> 320
A53: CATEGORÍA AMATEUR ABIERTA
C54: JINETE | D54: PUNTAJE
A55: 1 | B55: CAMPEÓN NACIONAL | C55: =+'AMATEUR ABIERTA'!D8 -> CANGAS GUILLERMO | D55: =+'AMATEUR ABIERTA'!O8 -> 391.2
A56: 2 | B56: VICECAMPEÓN NACIONAL | C56: =+'AMATEUR ABIERTA'!D9 -> FALCONI FRANCISCO | D56: =+'AMATEUR ABIERTA'!O9 -> 327.36
A57: 3 | C57: =+'AMATEUR ABIERTA'!D10 -> MANCHENO PAMELA | D57: =+'AMATEUR ABIERTA'!O10 -> 263.2
A58: 4 | C58: =+'AMATEUR ABIERTA'!D11 -> MALO ANDREA | D58: =+'AMATEUR ABIERTA'!O11 -> 192
A59: 5 | C59: =+'AMATEUR ABIERTA'!D12 -> ALLAICO JOSE EMILIO | D59: =+'AMATEUR ABIERTA'!O12 -> 140.8
A61: CATEGORÍA AMATEUR JUVENIL
C62: JINETE | D62: PUNTAJE
A63: 1 | B63: CAMPEÓN NACIONAL | C63: =+'AMATEUR JUVENIL'!D8 -> MAZAPANTA LUIS | D63: =+'AMATEUR JUVENIL'!O8 -> 198.56
A64: 2 | B64: VICECAMPEÓN NACIONAL | C64: =+'AMATEUR JUVENIL'!D9 -> DARQUEA ANA MARIA | D64: =+'AMATEUR JUVENIL'!O9 -> 194.24
A65: 3 | C65: =+'AMATEUR JUVENIL'!D10 -> JARAMILLO MANUELA | D65: =+'AMATEUR JUVENIL'!O10 -> 130.24
A66: 4 | C66: =+'AMATEUR JUVENIL'!D11 -> MAZAPANTA KEVIN | D66: =+'AMATEUR JUVENIL'!O11 -> 130.24
A67: 5 | C67: =+'AMATEUR JUVENIL'!D12 -> BERREZUETA PABLO SANTIAGO | D67: =+'AMATEUR JUVENIL'!O12 -> 80
A69: CATEGORÍA AMATEUR MENORES
C70: JINETE | D70: PUNTAJE
A71: 1 | B71: CAMPEÓN NACIONAL | C71: =+'AMATEUR MENORES'!D8 -> DAVALOS JORGE | D71: =+'AMATEUR MENORES'!O8 -> 397.2
A72: 2 | B72: VICECAMPEÓN NACIONAL | C72: =+'AMATEUR MENORES'!D9 -> 0 | D72: =+'AMATEUR MENORES'!O9 -> 0
A73: 3 | C73: =+'AMATEUR MENORES'!D10 -> 0 | D73: =+'AMATEUR MENORES'!O10 -> 0
A74: 4 | C74: =+'AMATEUR MENORES'!D11 -> 0 | D74: =+'AMATEUR MENORES'!O11 -> 0
A75: 5 | C75: =+'AMATEUR MENORES'!D12 -> 0 | D75: =+'AMATEUR MENORES'!O12 -> 0
A77: CATEGORÍA NOVICIOS CABALLOS
C78: JINETE | D78: JINETE/DUEÑO | E78: PUNTAJE
A79: 1 | B79: CAMPEÓN NACIONAL | C79: =+'CABALLOS NOVICIOS'!D8 -> CARAMELO CMB | D79: ESPINOZA JUAN SEBASTIAN | E79: =+'CABALLOS NOVICIOS'!P8 -> 333.2
A80: 2 | B80: VICECAMPEÓN NACIONAL | C80: =+'CABALLOS NOVICIOS'!D9 -> SANTOO | D80: SERRANO ARMANDO | E80: =+'CABALLOS NOVICIOS'!P9 -> 332.8
A81: 3 | C81: =+'CABALLOS NOVICIOS'!D10 -> MANDI CMB | D81: SAMPER ALVARO | E81: =+'CABALLOS NOVICIOS'!P10 -> 327.2
A82: 4 | C82: =+'CABALLOS NOVICIOS'!D11 -> WOODY | D82: ULLOA GORDON FERNANDO | E82: =+'CABALLOS NOVICIOS'!P11 -> 322.24
A83: 5 | C83: =+'CABALLOS NOVICIOS'!D12 -> AISHA | D83: RIBADENEIRA ARTURO | E83: =+'CABALLOS NOVICIOS'!P12 -> 291.44
A85: CATEGORÍA PROMOCIONAL ABIERTA
C86: JINETE | D86: PUNTAJE
A87: 1 | B87: CAMPEÓN NACIONAL | C87: =+'PR ABIERTA'!D8 -> ESTRADA CARLOS | D87: =+'PR ABIERTA'!O8 -> 169.92
A88: 2 | B88: VICECAMPEÓN NACIONAL | C88: =+'PR ABIERTA'!D9 -> MONCAYO FERNANDO | D88: =+'PR ABIERTA'!O9 -> 123.536
A89: 3 | C89: =+'PR ABIERTA'!D10 -> ORTIZ FERNANDO | D89: =+'PR ABIERTA'!O10 -> 68.96
A90: 4 | C90: =+'PR ABIERTA'!D11 -> HIDALGO GUSTAVO | D90: =+'PR ABIERTA'!O11 -> 65.512
A91: 5 | C91: =+'PR ABIERTA'!D12 -> MARIO ROSAS | D91: =+'PR ABIERTA'!O12 -> 65.36
A93: CATEGORÍA PROMOCIONAL JUVENIL
C94: JINETE | D94: PUNTAJE
A95: 1 | B95: CAMPEÓN NACIONAL | C95: =+'PR JUVENIL'!D8 -> NOROÑA JORDAN | D95: =+'PR JUVENIL'!O8 -> 68.8
A96: 2 | B96: VICECAMPEÓN NACIONAL | C96: =+'PR JUVENIL'!D9 -> GABRIEL DARQUEA | D96: =+'PR JUVENIL'!O9 -> 68.8
A97: 3 | C97: =+'PR JUVENIL'!D10 -> BARBARA ESPINOZA | D97: =+'PR JUVENIL'!O10 -> 65.36
A98: 4 | C98: =+'PR JUVENIL'!D11 -> JHON CANDELEJO | D98: =+'PR JUVENIL'!O11 -> 32
A99: 5 | C99: =+'PR JUVENIL'!D12 -> 0 | D99: =+'PR JUVENIL'!O12 -> 0
A101: CATEGORÍA PROMOCIONAL MENORES
C102: JINETE | D102: PUNTAJE
A103: 1 | B103: CAMPEÓN NACIONAL | C103: =+'PR MENORES'!D8 -> CORREA JUAN MARTIN | D103: =+'PR MENORES'!O8 -> 60.8
A104: 2 | B104: VICECAMPEÓN NACIONAL | C104: =+'PR MENORES'!D9 -> ESPINOZA NATALIA | D104: =+'PR MENORES'!O9 -> 58.176
A105: 3 | C105: =+'PR MENORES'!D10 -> CASTILLO DAFNE | D105: =+'PR MENORES'!O10 -> 32
A106: 4
A107: 5
A109: CATEGORÍA PROMOCIONAL INFANTIL
C110: JINETE | D110: PUNTAJE
A111: 1 | B111: CAMPEÓN NACIONAL | C111: =+'PR INFANTIL'!D8 -> 0 | D111: =+'PR INFANTIL'!O8 -> 0
A112: 2 | B112: VICECAMPEÓN NACIONAL | C112: =+'PR INFANTIL'!D9 -> 0 | D112: =+'PR INFANTIL'!O9 -> 0
A113: 3 | C113: =+'PR INFANTIL'!D10 -> 0 | D113: =+'PR INFANTIL'!O10 -> 0
A114: 4 | C114: =+'PR INFANTIL'!D11 -> 0 | D114: =+'PR INFANTIL'!O11 -> 0
A115: 5
A117: CATEGORÍA PROMOCIONAL ADULTO/MENOR
C118: MENOR | D118: PUNTAJE
A119: 1 | B119: CAMPEÓN NACIONAL | C119: =+'PR ADULTO-MENOR'!C8 -> CASTILLO DAFNE | D119: =+'PR ADULTO-MENOR'!O8 -> 64.64
A120: 2 | B120: VICECAMPEÓN NACIONAL | C120: =+'PR ADULTO-MENOR'!C9 -> SERRANO OLIVIA | D120: =+'PR ADULTO-MENOR'!O9 -> 63.184
A121: 3 | C121: =+'PR ADULTO-MENOR'!C10 -> JARA RAFAELA | D121: =+'PR ADULTO-MENOR'!O10 -> 32.32
A122: 4 | C122: =+'PR ADULTO-MENOR'!C11 -> MOYA MARTINA | D122: =+'PR ADULTO-MENOR'!O11 -> 32
A123: 5 | C123: =+'PR ADULTO-MENOR'!C12 -> CORREA DAVID | D123: =+'PR ADULTO-MENOR'!O12 -> 29.232

Sheet CAMPEONES 2016
B2: CAMPEONATO ECUATORIANO DE ENDURANCE
B4: CATEGORÍA ELITE ABIERTA CHASQUI 3
D5: JINETE | E5: CABALLO
B6: 1 | C6: CAMPEÓN NACIONAL | D6: ALLAICO EMILIO | E6: ASRAEL
B7: 2 | C7: VICECAMPEÓN NACIONAL | D7: ALMEIDA HECTOR | E7: AVENTURERO
B8: 3 | D8: DAVIS JAQUELINE | E8: BONBON
B9: 4 | D9: MORABOWEN CESAR | E9: SERENATA CMB
B11: CATEGORÍA ELITE JUVENIL CHASQUI 3
D12: JINETE | E12: CABALLO
B13: 1 | C13: CAMPEÓN NACIONAL | D13: GONZALEZ BERNARDA | E13: KADIN
B14: 2 | C14: VICECAMPEÓN NACIONAL
B15: 3
B17: CATEGORÍA ELITE ABIERTA CHASQUI 2
D18: JINETE | E18: CABALLO
B19: 1 | C19: CAMPEÓN NACIONAL | D19: WEEMAELS NATHALIE | E19: RO EVITA
B20: 2 | C20: VICECAMPEÓN NACIONAL | D20: BURBANO JAIME SEBASTIAN | E20: NEGRO EG
B21: 3 | D21: RAMIREZ FABRICIO | E21: BULERIA CMB
B23: CATEGORÍA ELITE JUVENIL CHASQUI 2
D24: JINETE | E24: CABALLO
B25: 1 | C25: CAMPEÓN NACIONAL | D25: LOYOLA MARIA CLAUDIA | E25: PATACON
B26: 2 | C26: VICECAMPEÓN NACIONAL | D26: LOYOLA TEODORO | E26: EL PADRINO
B27: 3
B29: CATEGORÍA ELITE JUVENIL CHASQUI 2
D30: JINETE | E30: CABALLO
B31: 1 | C31: CAMPEÓN NACIONAL | D31: MORABOWEN MOSQUERA CESAR | E31: CALEÑA CMB
B32: 2 | C32: VICECAMPEÓN NACIONAL
B33: 3
B35: CATEGORÍA MENORES CHASQUI 1
D36: JINETE | E36: CABALLO
B37: 1 | C37: CAMPEÓN NACIONAL | D37: DAVALOS JORGE | E37: CARAMELO CMB
B38: 2 | C38: VICECAMPEÓN NACIONAL
B39: 3
B41: CATEGORÍA ABIERTA CHASQUI 1
D42: JINETE | E42: CABALLO
B43: 1 | C43: CAMPEÓN NACIONAL
B44: 2 | C44: VICECAMPEÓN NACIONAL
B45: 3
B47: CATEGORÍA JUVENIL CHASQUI 1
D48: JINETE | E48: CABALLO
B49: 1 | C49: CAMPEÓN NACIONAL
B50: 2 | C50: VICECAMPEÓN NACIONAL
B51: 3

Sheet SUPER CHASQUI
C2: PREMIO SUPER CHASQUI DE ENDURANCE
B4: SUPER CHASQUI 3 JINETES
C5: JINETE
B6: 1 | C6: ALMEIDA AYALA HECTOR | D6: 3117
B7: 2
B8: 3
B10: SUPER CHASQUI 3 CABALLOS
C11: JINETE | D11: CABALLO
B12: 1
B13: 2
B14: 3
B16: SUPER CHASQUI 3 BINOMIOS
C17: JINETE | D17: CABALLO
B18: 1
B19: 2
B20: 3
B22: SUPER CHASQUI 2 JINETES (2000 Km)
C23: JINETE | D23: KILOMETRAJE
C24: RIBADENEIRA SOFIA | D24: 2967
C25: ANDRADE JOSE DANIEL | D25: 2772
C26: WEEMAELS NATHALIE | D26: 2729
C27: GONZALEZ BERNARDA | D27: 2462
C28: LETORT DUEÑAS BERNARDA | D28: 2335
C29: RECALDE JUAN JOSE | D29: 2128
C30: NEUMANN KARINA | D30: 2108
C31: MORILLO MAURICIO | D31: 2032
C32: RIBADENEIRA ARTURO | D32: 2030
C33: GOMEZ MICHILENA ALEXANDER | D33: 2001
B38: SUPER CHASQUI 2 CABALLOS (2000 Km)
C39: JINETE | D39: PROPIETARIO/JINETE | E39: KILOMETRAJE
B40: 1 | C40: AR FAISAN | D40: ARTURO RIBADENEIRA | E40: 2037
B41: 2
B42: 3
B44: SUPER CHASQUI 2 BINOMIOS (2000 Km)
C45: JINETE | D45: KILOMETRAJE
B46: 1
B47: 2
B48: 3
B50: SUPER CHASQUI 1 JINETES (1000 Km)
C51: JINETE | D51: KILOMETRAJE
B52: 1 | C52: DARQUEA RAFAELA | D52: 1980
B53: 2 | C53: GUARDERAS BARAHONA SEBASTIAN | D53: 1943
B54: 3 | C54: VINTIMILLA SERRANO PABLO XAVIER | D54: 1755
B55: 4 | C55: MORABOWEN CESAR | D55: 1719
B56: 5 | C56: SERRANO VALLEJO FELIPE | D56: 1579
B57: 6 | C57: MORENO CORDOVEZ DANIELA | D57: 1496
B58: 7 | C58: NOBOA MAURICIO | D58: 1484
B59: 8 | C59: WRAY VINUEZA MATEO | D59: 1474
B60: 9 | C60: MONROY BAROJA MARIA FERNANDA | D60: 1444
B61: 10 | C61: DARQUEA BERNARDO | D61: 1443
B62: 11 | C62: KOPPEL OSWALDO | D62: 1408
B63: 12 | C63: CORNEJO BURNEO MANUEL | D63: 1298
B64: 13 | C64: MORILLO SERGIO | D64: 1247
B65: 14 | C65: VELEZ MENA MARIA CONSUELO | D65: 1201
B66: 15 | C66: CANDO MARIO | D66: 1173
B67: 16 | C67: LOYOLA VINTIMILLA MARIA CLAUDIA | D67: 1171
B68: 17 | C68: DAVILA GORDILLO JUAN DIEGO | D68: 1071
B69: 18
B70: 19
B71: 20
B73: SUPER CHASQUI 1 CABALLOS (1000 Km)
C74: JINETE | D74: PROPIETARIO/JINETE | E74: KILOMETRAJE
B75: 1 | C75: ANGOSTURA FRODO | D75: RIBADENEIRA ARTURO | E75: 1890
B76: 2 | C76: CENTAURO | D76: HECTOR ALMEIDA | E76: 1872
B77: 3 | C77: FHARA CONEJA | D77: DARQUEA BERNARDO | E77: 1807
B78: 4 | C78: MISTERIO | D78: MORILLO MAURICIO | E78: 1572
B79: 5 | C79: CG ALLASKI | D79: WEEMAELS NATHALIE | E79: 1524
B80: 6 | C80: BOM BOM | D80: JUAN JOSE RECALDE | E80: 1489
B81: 7 | C81: QUITA PENAS | D81: ILIANA RUIZ | E81: 1339
B82: 8 | C82: WISKY | D82: MAURICIO NOBOA | E82: 1137
B83: 9 | C83: PATACON | D83: LOYOLA VINTIMILLA MARIA CLAUDIA | E83: 1115
B84: 10 | C84: SHAKIRA | D84: LETORT JOSE IGNACIO | E84: 1023
B85: 11 | C85: TRUENO | D85: DARQUEA BERNARDO | E85: 1011
B86: 12
B87: 13
B88: 14
B89: 15
B90: 16
B91: 17
B92: 18
B93: 19
B94: 20
B95: 21
B96: 22
B97: 23
B98: 24
B99: 25
B101: SUPER CHASQUI 1 BINOMIOS (1000 Km)
C102: JINETE | D102: CABALLO | E102: KILOMETRAJE
B103: 1 | C103: HECTOR ALMEIDA | D103: CENTAURO | E103: 1626
B104: 2 | C104: WEEMAELS NATHALIE | D104: CG ALLASKI | E104: 1520
B105: 3 | C105: MORILLO MAURICIO | D105: MISTERIO | E105: 1458
B106: 4 | C106: DARQUEA BERNARDO | D106: FHARA CONEJA | E106: 1362
B107: 5 | C107: RIBADENEIRA SOFIA | D107: AR FAISAN | E107: 1181
B108: 6 | C108: LOYOLA VINTIMILLA MARIA CLAUDIA | D108: PATACON | E108: 1115
B109: 7
B110: 8
B111: 9
B112: 10
B113: 11
B114: 12
B115: 13

Sheet EQUIPOS
B2: PUNTAJE ACUMULADO
B3: EQUIPOS
B5: EQUIPOS | K5: PUNTAJES
K6: 2016
C7: EQUIPO | D7: CAPITAN | E7: JINETES | K7: I CHONE | L7: II CHONE | M7: III CHONE | N7: IV CHONE | O7: V CHONE | P7: VI CHONE | Q7: VII CHONE | R7: VIII CHONE | S7: IX CHONE | T7: X CHONE | U7: ACUMULADO
B8: 1 | C8: ENDURANCE AZUAY | D8: MARIA CONSUELO VELEZ | E8: PABLO VINTIMILLA | F8: BERNARDA GONZALEZ | G8: CLAUDIA LOYOLA | H8: HECTOR ALMEIDA | I8: JAIME BURBANO | J8: MARIA CONSUELO VELEZ | K8: 398.86 | L8: 436.8 | N8: 285.6 | P8: 418 | R8: 620.39 | T8: 633.9 | U8: =SUM(K8:T8) -> 2793.55
B9: 3 | C9: HACIENDA HATO VERDE | D9: CESAR MORABOWEN AGUIRRE | E9: CESAR MORABOWEN MOSQUERA | F9: JUAN ANTONIO LEON | G9: JORGE DAVALOS | H9: FABRICIO RAMIREZ | I9: CESAR MORABOWEN AGUIRRE | J9: MAHNKE LIESEL | K9: 264.72 | L9: 317.6 | O9: 257.6 | R9: 472.18 | S9: 421.2 | T9: 513.5 | U9: 2246.8
B10: 2 | C10: CACHAFAZ-SAN ALFONZO | D10: ARTURO RIBADENEIRA | E10: JOAQUINA DAVALOS | F10: FRANCISCO FALCONÍ | G10: FELIPE PORTILLA | H10: JOSÉ ANDRADE | I10: SOFÍA RIVADENEIRA | J10: ARTURO RIBADENEIRA | K10: 387.28 | L10: 436.8 | U10: 824.08 | AN10: =+$U$8-U9 -> 546.75 | AO10: =VLOOKUP(B10,#REF!,3,FALSE) -> 
B11: 4 | C11: SEGUROS EQUINOCCIAL | D11: BERNARDO DARQUEA | E11: JUAN JOSE RECALDE | F11: FELIPE SERRANO | G11: KEVIN MAZAPANTA | H11: MANUEL CORNEJO | I11: BERNARDO DARQUEA | K11: 390.72 | U11: 390.72
B12: 5 | C12: EKOS NEGOCIOS | D12: MAURICIO MORILLO | E12: VALENTINA MORILLO | G12: NATHALIE WEEMAELS | H12: MAURICIO MORILLO | K12: 349.94 | U12: 349.94
B13: 6 | C13: SELECT | D13: ARMANDO SERRANO | E13: MANUELA JARAMILLO | F13: BERNARDA LETORT | G13: JOSE LETORT MENA | H13: ARMANDO SERRANO | K13: 345.72 | U13: 345.72
B14: 7 | C14: ENDURANCE AZUAY 2 | D14: KOPPEL OSWALDO | E14: LOZADA JOSE ARMANDO | F14: MALO ANDREA | G14: ALLAICO JOSE EMILIO | H14: KOPPEL OSWALDO | I14: DARQUEA ANA MARIA | P14: 336 | U14: 336
B15: 8 | C15: SWEADEN | D15: GALO MANCHENO | E15: PAMELA MANCHENO | F15: DANIEL MANCHENO | G15: DIEGO MANCHENO | H15: GALO MANCHENO | K15: 167.152 | U15: 167.152
B16: 9 | U16: =SUM(K16:T16) -> 0
B17: 10 | U17: 0
B18: 11 | U18: 0
B19: 12 | U19: 0
B20: 13 | U20: 0
B21: 14 | U21: 0
B22: 15 | U22: 0
B23: 16 | U23: 0

Sheet ELITE ABIERTA
B2: PUNTAJE ACUMULADO
B3: CATEGORÍA ABIERTA ELITE
B5: ELITE ABIERTA | E5: PUNTAJES
E6: 2016
C7: CODIGO | D7: JINETE | E7: I CHONE | F7: II CHONE | G7: III CHONE | H7: IV CHONE | I7: V CHONE | J7: VI CHONE | K7: VII CHONE | L7: VIII CHONE | M7: IX CHONE | N7: X CHONE | O7: ACUMULADO
B8: 1 | C8: A035 | D8: ALMEIDA AYALA HECTOR | E8: 130.24 | J8: 160 | L8: 240.2 | N8: 229.9 | O8: =SUM(E8:N8) -> 760.34
B9: 2 | C9: A045 | D9: MORABOWEN CESAR | F9: 122 | L9: 216.18 | M9: 129.6 | N9: 205.7 | O9: 673.48
B10: 3 | C10: A171 | D10: WEEMAELS NATHALIE | E10: 162.8 | I10: 320 | N10: 162 | O10: 644.8
B11: 4 | C11: A092 | D11: VINTIMILLA PABLO | E11: 138.38 | J11: 76 | L11: 228.19 | M11: =81*2 -> 162 | O11: 604.57
B12: 5 | C12: A055 | D12: VELEZ MARIA CONSUELO | E12: 130.24 | F12: 73.6 | H12: 67.2 | J12: 130 | K12: 94 | O12: 495.04
B13: 6 | C13: A185 | D13: RAMIREZ FABRICIO | E13: 68.96 | L13: 128 | M13: 129.6 | N13: 145.8 | O13: 472.36
B14: 7 | C14: A201 | D14: ALLAICO JOSE EMILIO | F14: 73.6 | H14: 67.2 | J14: 80 | N14: 242 | O14: 462.8
B15: 8 | C15: A172 | D15: BURBANO VILLAVICENCIO JAIME | F15: 134.4 | J15: 128 | N15: 153.9 | O15: 416.3
B16: 9 | C16: A214 | D16: MOYA MIGUEL ANGEL | H16: 134.4 | J16: 128 | L16: 136 | O16: 398.4
B17: 10 | C17: A033 | D17: SERRANO ARMANDO | E17: 146.52 | L17: 152 | O17: 298.52
B18: 11 | C18: A057 | D18: DAVILA JUAN DIEGO | E18: 68.96 | L18: 160 | M18: 68.8 | O18: 297.76
B19: 12 | C19: A059 | D19: PORTILLA FELIPE | E19: 126.8 | F19: 168 | O19: 294.8
B20: 13 | C20: A060 | D20: RECALDE JUAN JOSE | E20: 130.24 | L20: 144 | O20: 274.24
B21: 17 | C21: A067 | D21: CANDO MARIO | H21: 134.4 | M21: 68.8 | N21: 68.8 | O21: 272
B22: 14 | C22: A192 | D22: LOZADA JOSE ARMANDO | J22: 128 | L22: 128 | O22: 256
B23: 15 | C23: A200 | D23: MANCHENO GALO | E23: 68.96 | M23: 153.9 | O23: 222.86
B24: 16 | C24: A215 | D24: JAQUELINE DAVIS | N24: 217.8 | O24: 217.8
B25: 18 | C25: A081 | D25: KOPPEL OSWALDO | H25: 134.4 | J25: 64 | O25: 198.4
B26: 19 | C26: A056 | D26: MORILLO MAURICIO | E26: 154.66 | O26: 154.66
B27: 23 | C27: A026 | D27: LETORT JOSE | E27: 68.96 | N27: 68.8 | O27: 137.76
B28: 20 | C28: A200 | D28: MALO DIANA | H28: 67.2 | J28: 64 | O28: 131.2
B29: 21 | C29: A048 | D29: BARAHONA ANDRES | E29: 130.24 | O29: 130.24
B30: 23 | C30: A046 | D30: MAURICIO NOBOA | N30: 129.6 | O30: 129.6
B31: 22 | C31: A058 | D31: RIBADENEIRA ARTURO | E31: 86.2 | O31: 86.2
L33: =IF(J33>=60,"CLASIFICADO A 60 Km LIBRE y 80 Km NOVICIO",IF(J33>=40,"CLASIFICADO A 40 Km LIBRE y 60 Km NOVICIO","")) -> 
L51: =IF(J51>=60,"CLASIFICADO A 60 Km LIBRE y 80 Km NOVICIO",IF(J51>=40,"CLASIFICADO A 40 Km LIBRE y 60 Km NOVICIO","")) -> 

Sheet ELITE JUVENIL
B2: PUNTAJE ACUMULADO
B3: CATEGORÍA JUVENIL ELITE
B5: ELITE JUVENIL | E5: PUNTAJES
E6: 2016
C7: CODIGO | D7: JINETE | E7: I CHONE | F7: II CHONE | G7: III CHONE | H7: IV CHONE | I7: V CHONE | J7: VI CHONE | K7: VII CHONE | L7: VIII CHONE | M7: IX CHONE | N7: X CHONE | O7: ACUMULADO
B8: 1 | C8: J063 | D8: GONZALEZ BERNARDA | F8: 134.4 | H8: 134.4 | I8: 152.38 | J8: 76 | L8: 152 | M8: 162 | N8: 242 | O8: =SUM(E8:N8) -> 1053.18
B9: 2 | C9: J034 | D9: ANDRADE JOSE DANIEL | F9: 134.4 | H9: 168 | I9: 320 | J9: 64 | O9: 686.4
B10: 3 | C10: J055 | D10: LOYOLA CLAUDIA MARIA | F10: 168 | H10: 84 | I10: 160.4 | J10: 80 | N10: 162 | O10: 654.4
B11: 4 | C11: J096 | D11: LOYOLA TEODORO ANDRES | F11: 73.6 | H11: 67.2 | L11: 144 | N11: =162*0.95 -> 153.9 | O11: 438.7
B12: 5 | C12: J011 | D12: LETORT BERNARDA | I12: 240 | M12: 126 | O12: 366
B13: 6 | C13: J020 | D13: SERRANO FELIPE | E13: 130.24 | L13: 160 | O13: 290.24
B14: 7 | C14: J111 | D14: DAVALOS JOAQUINA | E14: 130.24 | F14: 134.4 | O14: 264.64
B15: 8 | C15: J008 | D15: GOMEZ ALEXANDER | I15: 64.64 | M15: 68.8 | N15: 129.6 | O15: 263.04
B16: 9 | C16: J114 | D16: MASAPANTA LUIS | M16: 68.8 | N16: 129.6 | O16: 198.4
B17: 10 | C17: J021 | D17: CORNEJO MANUEL | I17: 144.36 | O17: 144.36
B18: 11 | O18: =SUM(E18:N18) -> 0
B19: 12 | O19: 0
B20: 13 | O20: 0
B21: 14 | O21: 0
B22: 15 | O22: 0
B23: 16 | O23: =SUM(E23:N23) -> 0
B24: 17 | O24: 0
B25: 18 | O25: 0
B26: 19 | O26: 0
L28: =IF(J28>=60,"CLASIFICADO A 60 Km LIBRE y 80 Km NOVICIO",IF(J28>=40,"CLASIFICADO A 40 Km LIBRE y 60 Km NOVICIO","")) -> 
L39: =IF(J39>=60,"CLASIFICADO A 60 Km LIBRE y 80 Km NOVICIO",IF(J39>=40,"CLASIFICADO A 40 Km LIBRE y 60 Km NOVICIO","")) -> 

Sheet ELITE MENORES
B2: PUNTAJE ACUMULADO
B3: CATEGORÍA MENORES ELITE
B5: ELITE MENORES | E5: PUNTAJES
E6: 2016
C7: CODIGO | D7: JINETE | E7: I CHONE | F7: II CHONE | G7: III CHONE | H7: IV CHONE | I7: V CHONE | J7: VI CHONE | K7: VII CHONE | L7: VIII CHONE | M7: IX CHONE | N7: X CHONE | O7: ACUMULADO
B8: 1 | C8: M022 | D8: MORABOWEN MOSQUERA CESAR | E8: 126.8 | F8: 122 | I8: 128.32 | L8: 128 | M8: 162 | N8: 162 | O8: =SUM(E8:N8) -> 829.12
B9: 2 | O9: 0
B10: 3 | O10: 0
B11: 4 | O11: 0
B12: 5 | O12: 0
B13: 6 | O13: 0
B14: 7 | O14: 0
B15: 8 | O15: 0
B16: 9 | O16: 0
B17: 10 | O17: 0
B18: 11 | O18: 0
B19: 12 | O19: 0
B20: 13 | O20: 0
B21: 14 | O21: 0
B22: 15 | O22: =SUM(E22:N22) -> 0
B23: 16 | O23: 0
B24: 17 | O24: 0
B25: 18 | O25: 0
B26: 19 | O26: 0
L28: =IF(J28>=60,"CLASIFICADO A 60 Km LIBRE y 80 Km NOVICIO",IF(J28>=40,"CLASIFICADO A 40 Km LIBRE y 60 Km NOVICIO","")) -> 
L39: =IF(J39>=60,"CLASIFICADO A 60 Km LIBRE y 80 Km NOVICIO",IF(J39>=40,"CLASIFICADO A 40 Km LIBRE y 60 Km NOVICIO","")) -> 

Sheet ELITE CABALLOS
B2: PUNTAJE ACUMULADO
B3: CATEGORÍA CABALLOS ELITE
B5: ELITE CABALLOS | F5: PUNTAJES
F6: 2016
C7: CODIGO | D7: CABALLO | E7: DUEÑO/JINETE | F7: I CHONE | G7: II CHONE | H7: III CHONE | I7: IV CHONE | J7: V CHONE | K7: VI CHONE | L7: VII CHONE | M7: VIII CHONE | N7: IX CHONE | O7: X CHONE | P7: ACUMULADO
B8: 1 | C8: C115 | D8: AVENTURERO | E8: HECTOR ALMEIDA AYALA | M8: 240.2 | O8: 229.9 | P8: =SUM(F8:O8) -> 470.1
B9: 2 | C9: C445 | D9: ANGOSTURA FRODO | E9: ARTURO RIBADENEIRA | F9: 68.96 | G9: 134.4 | J9: 320 | P9: =SUM(F9:O9)-F9 -> 454.4
B10: 3 | C10: C238 | D10: CALEÑA CMB | E10: MORABOWEN CESAR | G10: 122 | I10: 126.8 | J10: 128.32 | M10: 128 | N10: 162 | O10: 162 | P10: =SUM(F10:O10)-G10-I10-M10 -> 452.32
B11: 4 | C11: C394 | D11: POLACO | E11: GONZALEZ BERNARDA | G11: 134.4 | I11: 134.4 | M11: 152 | N11: 162 | P11: =SUM(F11:O11)-G11 -> 448.4
B12: 5 | C12: C252 | D12: BIANCA | E12: VINTIMILLA PABLO | F12: 138.38 | K12: 76 | M12: 228.19 | P12: =SUM(F12:O12) -> 442.57
B13: 6 | C13: C329 | D13: SERENATA CMB | E13: MORABOWEN CESAR | M13: 216.18 | O13: 205.7 | P13: =SUM(F13:O13) -> 421.88
B14: 7 | C14: C454 | D14: MD YALA | E14: ARMANDO SERRANO | F14: 130.24 | I14: 134.4 | M14: 152 | P14: =SUM(F14:O14) -> 416.64
B15: 8 | C15: C286 | D15: NEGRO EG | E15: BURBANO VILLAVICENCIO JAIME | G15: 134.4 | K15: 128 | O15: 153.9 | P15: =SUM(F15:O15) -> 416.3
B16: 9 | C16: C192 | D16: KALA | E16: LOYOLA CLAUDIA MARIA | G16: 168 | I16: 84 | J16: 160.4 | P16: =SUM(F16:O16) -> 412.4
B17: 10 | C17: C229 | D17: BULERIA CMB | E17: MORABOWEN CESAR | G17: 122 | M17: 128 | N17: 129.6 | O17: 145.8 | P17: =SUM(F17:O17)-G17 -> 403.4
B18: 11 | C18: C165 | D18: DIAMANTE | E18: MOYA MIGUEL ANGEL | F18: 130.24 | I18: 134.4 | K18: 128 | M18: 136 | P18: =SUM(F18:O18)-K18 -> 400.64
B19: 12 | C19: C209 | D19: AISHA | E19: MARIA CONSUELO VELEZ MENA | F19: 130.24 | I19: 67.2 | L19: 94 | M19: 144 | P19: =SUM(F19:O19)-I19 -> 368.24
B20: 13 | C20: C154 | D20: SHAKIRA | E20: LETORT BERNARDA | J20: 240 | N20: 126 | P20: =SUM(F20:O20) -> 366
B21: 14 | C21: C098 | D21: BOMBON | E21: RECALDE JUAN JOSE | M21: 144 | O21: 217.8 | P21: 361.8
B22: 15 | C22: C206 | D22: AS GITANA | E22: SERRANO ARMANDO | F22: 146.52 | I22: 67.2 | J22: 144.36 | P22: 358.08
B23: 16 | C23: C413 | D23: RO EVITA | E23: NATHALIE WEEMAELS | F23: 162.8 | O23: 162 | P23: 324.8
B24: 17 | C24: C232 | D24: ASRAEL | E24: BERNARDO GONZALEZ | K24: 80 | O24: 242 | P24: 322
B25: 18 | C25: C093 | D25: CG ALLASKI | E25: WEEMAELS NATHALIE | J25: 320 | P25: 320
B26: 19 | C26: C333 | D26: KADIN | E26: GONZALEZ BERNARDA | K26: 76 | O26: 242 | P26: 318
B27: 20 | C27: C204 | D27: AR ALBATSYN | E27: PORTILLA FELIPE | F27: 126.8 | G27: 168 | P27: 294.8
B28: 21 | C28: C234 | D28: EL PADRINO | E28: VELEZ MENA MARIA CONSUELO | K28: 130 | O28: 153.9 | P28: 283.9
B29: 22 | C29: C197 | D29: PATACON | E29: LOYOLA CLAUDIA MARIA | K29: 80 | O29: 162 | P29: 242
B30: 23 | C30: C074 | D30: WISKY | E30: PABLO VINTIMILLA | M30: 76 | N30: 162 | P30: 238
B31: 24 | C31: C405 | D31: SOLOANDA | E31: FELIPE ANDRADE | K31: 64 | M31: 160 | P31: 224
B32: 25 | C32: C360 | D32: PSICOTICO | E32: GALO MANCHENO | F32: 68.96 | N32: 153.9 | P32: 222.86
B33: 26 | C33: C134 | D33: JUPITER | E33: FELIPE ANDRADE | I33: 168 | P33: 168
B34: 27 | C34: C097 | D34: CENTAURO | E34: JAIME BURBANO | K34: 160 | P34: 160
B35: 28 | C35: C136 | D35: FHARA CONEJA | E35: BERNARDO DARQUEA | M35: 160 | P35: =SUM(F35:O35) -> 160
B36: 29 | C36: C094 | D36: MISTERIO | E36: MAURICIO MORILLO | F36: 154.66 | P36: 154.66
B37: 30 | C37: C004 | D37: TEQUILA | E37: GONZALEZ BERNARDO | J37: 152.38 | P37: 152.38
B38: 31 | C38: C175 | D38: CLAW | E38: ARTURO RIBADENEIRA | F38: 130.24 | P38: 130.24
B39: 32 | C39: C114 | D39: KAFIR HA | E39: HECTOR ALMEIDA AYALA | F39: 130.24 | P39: 130.24
B40: 33 | C40: C174 | D40: ZT SATFANDU | E40: ARTURO RIBADENEIRA | J40: 128.32 | P40: 128.32
B41: 34 | C41: C096 | D41: AR FAISAN | E41: ARTURO RIBADENEIRA | F41: 86.2 | P41: 86.2
B42: 35 | P42: =SUM(F42:O42) -> 0
B43: 36 | P43: 0
B44: 37 | P44: 0
B45: 38 | P45: 0
B46: 39 | P46: 0
B47: 40 | P47: 0
B48: 41 | P48: 0
B49: 42 | P49: 0
B50: 43 | P50: 0
B51: 44 | P51: 0
B52: 45 | P52: 0
B53: 46 | P53: 0
B54: 47 | P54: 0
B55: 48 | P55: 0
B56: 49 | P56: 0
B57: 50 | P57: 0
B58: 51 | P58: 0
B59: 52 | P59: 0
B60: 53 | P60: 0
M80: =IF(K80>=60,"CLASIFICADO A 60 Km LIBRE y 80 Km NOVICIO",IF(K80>=40,"CLASIFICADO A 40 Km LIBRE y 60 Km NOVICIO","")) -> 

Sheet AMATEUR ABIERTA
B2: PUNTAJE ACUMULADO
B3: CATEGORÍA ABIERTA NOVICIOS
B5: NOVICIOS ABIERTA | E5: PUNTAJES
E6: 2016
C7: CODIGO | D7: JINETE | E7: I CHONE | F7: II CHONE | G7: III CHONE | H7: IV CHONE | I7: V CHONE | J7: VI CHONE | K7: VII CHONE | L7: VIII CHONE | M7: IX CHONE | N7: X CHONE | O7: ACUMULADO
B8: 1 | C8: A212 | D8: CANGAS GUILLERMO | E8: 68.96 | I8: 64.64 | L8: 128 | M8: 129.6 | O8: =SUM(E8:N8) -> 391.2
B9: 2 | C9: A125 | D9: FALCONI FRANCISCO | E9: 130.24 | I9: 128.32 | M9: 68.8 | O9: 327.36
B10: 3 | C10: A179 | D10: MANCHENO PAMELA | E10: 68.96 | I10: 64.64 | M10: 129.6 | O10: 263.2
B11: 4 | C11: A097 | D11: MALO ANDREA | J11: 128 | L11: 64 | O11: 192
B12: 5 | C12: A201 | D12: ALLAICO JOSE EMILIO | F12: 73.6 | H12: 67.2 | O12: 140.8
B13: 6 | C13: A219 | D13: MAHNKE LIESEL | I13: 64.64 | J13: 64 | O13: 128.64
B14: 7 | C14: A220 | D14: TUTIVEN LUIS | I14: 64.64 | J14: 64 | O14: 128.64
B15: 8 | C15: A178 | D15: JUAN CARLOS ANDRADE | N15: 86 | O15: 86
B16: 9 | C16: A215 | D16: COELLAR GONZALEZ PEDRO | F16: 73.6 | O16: 73.6
B17: 10 | C17: A218 | D17: UGALDE LORENA | F17: 73.6 | O17: 73.6
B18: 11 | C18: A221 | D18: PASQUEL HUGO | E18: 68.96 | O18: 68.96
B19: 12 | C19: A220 | D19: DUEÑAS GONZALO | E19: 68.96 | O19: 68.96
B20: 13 | C20: A236 | D20: JUNE TATE | N20: 68.8 | O20: 68.8
B21: 14 | C21: A301 | D21: SIMON PEREZ | N21: 68.8 | O21: 68.8
B22: 15 | C22: A215 | D22: COELLAR GONZALEZ PEDRO | H22: 67.2 | O22: 67.2
B23: 16 | C23: A223 | D23: MORENO MILTON GABRIEL | H23: 67.2 | O23: 67.2
B24: 17 | C24: A218 | D24: TRUEBA VICTORIA | I24: 64.64 | O24: 64.64
B25: 18 | O25: 0
B26: 19 | O26: =SUM(E26:N26) -> 0
B27: 20 | O27: =SUM(E27:N27) -> 0
B28: 21 | O28: 0
B29: 22 | O29: 0
B30: 23 | O30: 0
B31: 24 | O31: 0
B32: 25 | O32: 0
B33: 26 | O33: 0
B34: 27 | O34: 0
B35: 28 | O35: 0
B36: 29 | O36: 0
B37: 30 | O37: 0
B38: 31 | O38: 0
B39: 32 | O39: 0
B40: 33 | O40: 0
B41: 34 | O41: 0
B42: 35 | O42: 0
B43: 36 | O43: 0
B44: 37 | O44: 0
B45: 38 | O45: 0
B46: 39 | O46: 0
B47: 40 | O47: 0
B48: 41 | O48: 0
B49: 42 | O49: 0
B50: 43 | O50: =SUM(E50:N50) -> 0
B51: 44 | O51: =SUM(E51:N51) -> 0
B52: 45 | O52: 0
B53: 46 | O53: 0
B54: 47 | O54: 0
B55: 48 | O55: 0
B56: 49 | O56: 0
B57: 50 | O57: 0
B58: 51 | O58: 0
B59: 52 | O59: 0
B60: 53 | O60: 0
B61: 54 | O61: 0
B62: 55 | O62: 0
B63: 56 | O63: 0
B64: 57 | O64: 0
B65: 58 | O65: 0
B66: 59 | O66: 0
B67: 60 | O67: 0
B68: 61 | O68: 0
B69: 62 | O69: 0
B70: 63 | O70: 0
B71: 64 | O71: 0
B72: 65 | O72: 0
B73: 66 | O73: 0
B74: 67 | O74: 0
L94: =IF(J94>=60,"CLASIFICADO A 60 Km LIBRE y 80 Km NOVICIO",IF(J94>=40,"CLASIFICADO A 40 Km LIBRE y 60 Km NOVICIO","")) -> 

Sheet AMATEUR JUVENIL
B2: PUNTAJE ACUMULADO
B3: CATEGORÍA JUVENIL NOVICIOS
B5: NOVICIOS JUVENIL | E5: PUNTAJES
E6: 2016
C7: CODIGO | D7: JINETE | E7: I CHONE | F7: II CHONE | G7: III CHONE | H7: IV CHONE | I7: V CHONE | J7: VI CHONE | K7: VII CHONE | L7: VIII CHONE | M7: IX CHONE | N7: X CHONE | O7: ACUMULADO
B8: 1 | C8: J200 | D8: MAZAPANTA LUIS | E8: 68.96 | N8: 129.6 | O8: =SUM(E8:N8) -> 198.56
B9: 2 | C9: J109 | D9: DARQUEA ANA MARIA | E9: 130.24 | J9: 64 | O9: 194.24
B10: 3 | C10: J079 | D10: JARAMILLO MANUELA | E10: 130.24 | O10: 130.24
B11: 4 | C11: J114 | D11: MAZAPANTA KEVIN | E11: 130.24 | O11: 130.24
B12: 11 | C12: J095 | D12: BERREZUETA PABLO SANTIAGO | L12: 80 | O12: 80
B13: 5 | C13: J100 | D13: HURTADO HECTOR | L13: 76 | O13: 76
B14: 6 | C14: J021 | D14: CORNEJO MANUEL | E14: 68.96 | O14: 68.96
B15: 7 | C15: J065 | D15: ESPINOZA BARBARA | E15: 68.96 | O15: 68.96
B16: 8 | C16: J112 | D16: LEON JUAN | E16: 68.96 | O16: 68.96
B17: 9 | C17: J019 | D17: DARQUEA RICARDO | M17: 68.8 | O17: 68.8
B18: 10 | C18: J201 | D18: PAREDES EDWIN | I18: 64.64 | O18: 64.64
B19: 12 | C19: J117 | D19: CANDELARIO ARREAGA WAGNER | J19: 64 | O19: 64
B20: 13 | C20: A241 | D20: PEREZ SANDRO | L20: 64 | O20: 64
B21: 14 | O21: 0
B22: 15 | O22: =SUM(E22:N22) -> 0
B23: 16 | O23: =SUM(E23:N23) -> 0
B24: 17 | O24: 0
B25: 18 | O25: =SUM(E25:N25) -> 0
B26: 19 | O26: 0
B27: 20 | O27: 0
B28: 21 | O28: 0
B29: 22 | O29: 0
B30: 23 | O30: 0
B31: 24 | O31: 0
B32: 25 | O32: 0
B33: 26 | O33: 0
B34: 27 | O34: 0
B35: 28 | O35: 0
B36: 29 | O36: 0
B37: 30 | O37: 0
B38: 31 | O38: 0
B39: 32 | O39: 0
B40: 33 | O40: 0
B41: 34 | O41: 0
B42: 35 | O42: 0
B43: 36 | O43: 0
B44: 37 | O44: 0
B45: 38 | O45: 0
B46: 39 | O46: 0
B47: 40 | O47: 0
B48: 41 | O48: 0
B49: 42 | O49: 0
B50: 43 | O50: 0
B51: 44 | O51: 0
B52: 45 | O52: 0
B53: 46 | O53: 0
B54: 47 | O54: 0
B55: 48 | O55: 0
B56: 49 | O56: 0
B57: 50 | O57: 0
B58: 51 | O58: 0
B59: 52 | O59: 0
B60: 53 | O60: 0
B61: 54 | O61: 0
B62: 55 | O62: 0
B63: 56 | O63: 0
L65: =IF(J65>=60,"CLASIFICADO A 60 Km LIBRE y 80 Km NOVICIO",IF(J65>=40,"CLASIFICADO A 40 Km LIBRE y 60 Km NOVICIO","")) -> 
L83: =IF(J83>=60,"CLASIFICADO A 60 Km LIBRE y 80 Km NOVICIO",IF(J83>=40,"CLASIFICADO A 40 Km LIBRE y 60 Km NOVICIO","")) -> 

Sheet AMATEUR MENORES
B2: PUNTAJE ACUMULADO
B3: CATEGORÍA MENORES NOVICIOS
B5: INFANTIL | E5: PUNTAJES
E6: 2016
C7: CODIGO | D7: JINETE | E7: I CHONE | F7: II CHONE | G7: III CHONE | H7: IV CHONE | I7: V CHONE | J7: VI CHONE | K7: VII CHONE | L7: VIII CHONE | M7: IX CHONE | N7: X CHONE | O7: ACUMULADO
B8: 1 | C8: M031 | D8: DAVALOS JORGE | E8: 68.96 | F8: 73.6 | I8: 64.64 | L8: 64 | N8: 126 | O8: =SUM(E8:N8) -> 397.2
B9: 2 | O9: 0
B10: 3 | O10: 0
B11: 4 | O11: 0
B12: 5 | O12: 0
B13: 6 | O13: 0
B14: 7 | O14: 0
B15: 8 | O15: 0
B16: 9 | O16: 0
B17: 10 | O17: 0
B18: 11 | O18: 0
B19: 12 | O19: =SUM(E19:N19) -> 0
B20: 13 | O20: 0
B21: 14 | O21: 0
B22: 15 | O22: 0
B23: 16 | O23: 0
B24: 17 | O24: 0
B25: 18 | O25: 0
B26: 19 | O26: 0
B27: 20 | O27: 0
B28: 21 | O28: 0
B29: 22 | O29: 0
B30: 23 | O30: 0
L32: =IF(J32>=60,"CLASIFICADO A 60 Km LIBRE y 80 Km NOVICIO",IF(J32>=40,"CLASIFICADO A 40 Km LIBRE y 60 Km NOVICIO","")) -> 
L50: =IF(J50>=60,"CLASIFICADO A 60 Km LIBRE y 80 Km NOVICIO",IF(J50>=40,"CLASIFICADO A 40 Km LIBRE y 60 Km NOVICIO","")) -> 

Sheet CABALLOS NOVICIOS
B2: PUNTAJE ACUMULADO
B3: CATEGORÍA CABALLOS NOVICIOS
B5: CABALLOS NOVICIOS | F5: PUNTAJES
F6: 2016
C7: CODIGO | D7: CABALLO | E7: DUEÑO/JINETE | F7: I CHONE | G7: II CHONE | H7: III CHONE | I7: IV CHONE | J7: V CHONE | K7: VI CHONE | L7: VII CHONE | M7: VIII CHONE | N7: IX CHONE | O7: X CHONE | P7: ACUMULADO
B8: 1 | C8: C101 | D8: CARAMELO CMB | E8: DAVALOS JORGE EDUARDO | F8: 68.96 | G8: 73.6 | J8: 64.64 | M8: 64 | O8: 126 | P8: =SUM(F8:O8)-M8 -> 333.2
B9: 2 | C9: C441 | D9: SANTOO | E9: MARIA CONSUELO VELEZ MENA | G9: 73.6 | I9: 67.2 | K9: 128 | M9: 64 | P9: =SUM(F9:O9) -> 332.8
B10: 3 | C10: C417 | D10: MANDI CMB | E10: CESAR MORABOWEN | F10: 68.96 | J10: 64.64 | K10: 64 | M10: 64 | N10: 129.6 | P10: =SUM(F10:O10)-K10 -> 327.2
B11: 4 | C11: C437 | D11: WOODY | E11: CANGAS GUILLERMO | J11: 64.64 | M11: 128 | N11: 129.6 | P11: =SUM(F11:O11) -> 322.24
B12: 5 | C12: C209 | D12: AISHA | E12: MARIA CONSUELO VELEZ MENA | F12: 130.24 | I12: 67.2 | L12: 94 | P12: =SUM(F12:O12) -> 291.44
B13: 6 | C13: C418 | D13: NABU | E13: MANUEL CORNEJO | F13: 68.96 | N13: 68.8 | O13: 129.6 | P13: =SUM(F13:O13) -> 267.36
B14: 7 | C14: C085 | D14: BLACK | E14: BERNARDO DARQUEA | F14: 130.24 | J14: 64.64 | O14: 68.8 | P14: =SUM(F14:O14) -> 263.68
B15: 8 | C15: C436 | D15: TAKARI CSE | E15: GOMEZ ALEXANDER | J15: 64.64 | N15: 68.8 | O15: 129.6 | P15: =SUM(G15:O15) -> 263.04
B16: 9 | C16: C414 | D16: GH PSHYRO | E16: LOZADA JOSE ARMANDO | K16: 128 | M16: 128 | P16: =SUM(F16:O16) -> 256
B17: 10 | C17: C243 | D17: PAVITA | E17: JUAN CARLOS ANDRADE | J17: 64.64 | K17: 64 | O17: 86 | P17: 214.64
B18: 11 | C18: C217 | D18: GERONIMO | E18: GALO MANCHENO | F18: 68.96 | N18: 129.6 | P18: 198.56
B19: 12 | C19: C406 | D19: ELECTRIFY VO | E19: ANDRADE JOSE DANIEL | G19: 134.4 | K19: 64 | P19: 198.4
B20: 13 | C20: C438 | D20: MC LUCAS | E20: COELLAR GONZALEZ PEDRO | G20: 73.6 | I20: 67.2 | P20: 140.8
B21: 14 | C21: C439 | D21: SAN CARLOS | E21: ALLAICO JOSE EMILIO | G21: 73.6 | I21: 67.2 | P21: 140.8
B22: 15 | C22: C369 | D22: AS ANGUS | E22: ARMANDO SERRANO | N22: 68.8 | O22: 68.8 | P22: 137.6
B23: 18 | C23: C282 | D23: MAGIC MENES | E23: OSWALDO KOPPEL | I23: 134.4 | P23: 134.4
B24: 19 | C24: C387 | D24: AGUARDIENTICO | E24: MAURICIO NOBOA | F24: 130.24 | P24: 130.24
B25: 20 | C25: C427 | D25: FLACA | E25: FELIPE SERRANO | F25: 130.24 | P25: 130.24
B26: 21 | C26: C404 | D26: SALMA | E26: MANUELA JARAMILLO | F26: 130.24 | P26: 130.24
B27: 22 | C27: C081 | D27: SUE LD | E27: ANDRES BARAHONA | F27: 130.24 | P27: 130.24
B28: 23 | C28: C334 | D28: CAPORAL | E28: SALTIVERI MARIA JESUS | P28: 129.6
B29: 24 | C29: C288 | D29: LIA | E29: MAURICIO NOBOA | O29: 129.6 | P29: =SUM(F29:O29) -> 129.6
B30: 25 | C30: C130 | D30: ESPIRITU DEL ECUADOR | E30: BERREZUETA PABLO SANTIAGO | M30: 80 | P30: 80
B31: 26 | C31: C444 | D31: QUINA | E31: UGALDE LORENA | G31: 73.6 | P31: 73.6
B32: 27 | C32: C443 | D32: ZAHIRA | E32: LOYOLA TEODORO ANDRES | G32: 73.6 | P32: 73.6
B33: 28 | C33: C416 | D33: CARRUZO | E33: LUIS MAZAPANTA | F33: 68.96 | P33: 68.96
B34: 29 | C34: C370 | D34: JEREZ | E34: JOSE LETORT | O34: 68.8 | P34: 68.8
B35: 31 | C35: C502 | D35: MONARCH | E35: DAVILA JUAN DIEGO | N35: 68.8 | P35: 68.8
B36: 32 | C36: C140 | D36: SC SADIQ | E36: HECTOR ALMEIDA AYALA | N36: 68.8 | P36: 68.8
B37: 33 | C37: C372 | D37: SHAKIRA CMB | E37: CESAR MORABOWEN | O37: 68.8 | P37: 68.8
B38: 34 | C38: C278 | D38: JUGUETE | E38: LOYOLA TEODORO ANDRES | I38: 67.2 | P38: 67.2
B39: 35 | C39: C438 | D39: MC JULIA | E39: CESAR MORABOWEN | J39: 64.64 | P39: 64.64
B40: 36 | C40: C459 | D40: GALAN AMDD | E40: DARQUEA ANA MARIA | K40: 64 | P40: 64
B41: 37 | C41: C461 | D41: JULIA CMB | E41: CESAR MORABOWEN | K41: 64 | P41: 64
B42: 38 | C42: C462 | D42: SERENA | E42: CANDELARIO ARREAGA WAGNER | K42: 64 | P42: 64
B43: 39 | P43: 0
B44: 40 | P44: 0
B45: 41 | P45: =SUM(F45:O45) -> 0
B46: 42 | P46: 0
B47: 43 | P47: =SUM(F47:O47) -> 0
B48: 44 | P48: 0
B49: 45 | P49: 0
B50: 46 | P50: 0
B51: 47 | P51: 0
B52: 48 | P52: 0
B53: 49 | P53: 0
B54: 50 | P54: 0
B55: 51 | P55: 0
B56: 52 | P56: 0
B57: 53 | P57: 0
B58: 54 | P58: 0
B59: 55 | P59: 0
B60: 56 | P60: 0
B61: 57 | P61: 0
B62: 58 | P62: 0
B63: 59 | P63: 0
B64: 60 | P64: 0
B65: 61 | P65: =SUM(F65:O65) -> 0
B66: 62 | P66: 0
B67: 63 | P67: 0
B68: 64 | P68: =SUM(F68:O68) -> 0
B69: 65 | P69: 0
B70: 66 | P70: 0
B71: 67 | P71: 0
B72: 68 | P72: =SUM(F72:O72) -> 0
B73: 69 | P73: 0
B74: 70 | P74: 0
B75: 71 | P75: 0
B76: 72 | P76: 0
B77: 73 | P77: 0
B78: 74 | P78: 0
B79: 75 | P79: 0
B80: 76 | P80: 0
B81: 77 | P81: 0
B82: 78 | P82: 0
B83: 79 | P83: 0
B84: 80 | P84: 0
B85: 81 | P85: 0
B86: 82 | P86: 0
B87: 83 | P87: 0
B88: 84 | P88: 0
B89: 85 | P89: 0
B90: 86 | P90: 0
B91: 87 | P91: 0
B92: 88 | P92: 0
B93: 89 | P93: 0
B94: 90 | P94: 0
B95: 91 | P95: 0
B96: 92 | P96: 0
B97: 93 | P97: 0
M117: =IF(K117>=60,"CLASIFICADO A 60 Km LIBRE y 80 Km NOVICIO",IF(K117>=40,"CLASIFICADO A 40 Km LIBRE y 60 Km NOVICIO","")) -> 

Sheet BINOMIOS ABIERTA
B2: PUNTAJE ACUMULADO
B3: CATEGORÍA BINOMIOS ABIERTA
B5: BINOMIOS ABIERTA | G5: PUNTAJES
G6: 2016
C7: CODIGO | D7: JINETE | E7: CODIGO | F7: CABALLO | G7: I CHONE | H7: II CHONE | I7: III CHONE | J7: IV CHONE | K7: V CHONE | L7: VI CHONE | M7: VII CHONE | N7: VIII CHONE | O7: IX CHONE | P7: X CHONE | Q7: ACUMULADO
B8: 1 | C8: A059 | D8: ALMEIDA AYALA HECTOR | E8: C115 | F8: AVENTURERO | N8: 240.2 | P8: 229.9 | Q8: =SUM(G8:P8) -> 470.1
B9: 2 | C9: A092 | D9: VINTIMILLA PABLO | E9: C252 | F9: BIANCA | G9: 138.38 | L9: 76 | N9: 228.19 | Q9: 442.57
B10: 3 | C10: A045 | D10: MORABOWEN CESAR | E10: C329 | F10: SERENATA CMB | N10: 216.18 | P10: 205.7 | Q10: 421.88
B11: 4 | C11: A172 | D11: BURBANO VILLAVICENCIO JAIME | E11: C286 | F11: NEGRO EG | H11: 134.4 | L11: 128 | P11: 153.9 | Q11: 416.3
B12: 5 | C12: A214 | D12: MOYA MIGUEL ANGEL | E12: C165 | F12: DIAMANTE | J12: 134.4 | L12: 128 | N12: =160*0.85 -> 136 | Q12: 398.4
B13: 6 | C13: A055 | D13: WEEMAELS NATHALIE | E13: C413 | F13: RO EVITA | G13: 162.8 | P13: 162 | Q13: 324.8
B14: 7 | C14: A212 | D14: CANGAS GUILLERMO | E14: C437 | F14: WOODY | K14: 64.64 | N14: 128 | O14: 129.6 | Q14: 322.24
B15: 8 | C15: A201 | D15: ALLAICO JOSE EMILIO | E15: C232 | F15: ASRAEL | L15: 80 | P15: 242 | Q15: 322
B16: 9 | C16: A055 | D16: WEEMAELS NATHALIE | E16: C093 | F16: CG ALLASKI | K16: 320 | Q16: 320
B17: 10 | C17: A171 | D17: VELEZ MENA MARIA CONSUELO | E17: C209 | F17: AISHA | G17: 130.24 | J17: 67.2 | M17: 94 | Q17: 291.44
B18: 11 | C18: A177 | D18: RAMIREZ FABRICIO | E18: C229 | F18: BULERIA | N18: 128 | P18: 145.8 | Q18: 273.8
B19: 12 | C19: A192 | D19: LOZADA JOSE ARMANDO | E19: C414 | F19: GH PSHYRO | L19: 128 | N19: 128 | Q19: 256
B20: 13 | C20: A045 | D20: MORABOWEN CESAR | E20: C229 | F20: BULERIA | H20: 122 | O20: 129.6 | Q20: 251.6
B21: 14 | C21: A215 | D21: JAQUELINE DAVIS | E21: C098 | F21: BONBON | P21: 217.8 | Q21: 217.8
B22: 15 | C22: A179 | D22: MANCHENO PAMELA | E22: C217 | F22: GERONIMO | K22: 64.64 | O22: 129.6 | Q22: 194.24
B23: 16 | C23: A097 | D23: MALO ANDREA | E23: C441 | F23: SANTOO | L23: 128 | N23: 64 | Q23: 192
B24: 17 | C24: A035 | D24: PORTILLA FELIPE | E24: C204 | F24: AR ALBATSYN | H24: 168 | Q24: 168
B25: 18 | C25: A092 | D25: VINTIMILLA PABLO | E25: C074 | F25: WISKY | O25: 162 | Q25: 162
B26: 19 | C26: A059 | D26: ALMEIDA AYALA HECTOR | E26: C097 | F26: CENTAURO | L26: 160 | Q26: 160
B27: 20 | C27: A057 | D27: DAVILA JUAN DIEGO | E27: C405 | F27: SOLOANDA | N27: 160 | Q27: 160
B28: 21 | C28: A056 | D28: MORILLO MAURICIO | E28: C094 | F28: MISTERIO | G28: 154.66 | Q28: 154.66
B29: 22 | C29: A018 | D29: MANCHENO GALO PATRICIO | E29: C360 | F29: PSICOTICO | O29: 153.9 | Q29: 153.9
B30: 23 | C30: A033 | D30: SERRANO ARMANDO JOSE | E30: C454 | F30: MD YALA | N30: 152 | Q30: 152
B31: 24 | C31: A033 | D31: SERRANO ARMANDO | E31: C206 | F31: AS GITANA | G31: 146.52 | Q31: 146.52
B32: 25 | C32: A060 | D32: RECALDE JUAN JOSE | E32: C098 | F32: BOMBON | N32: 144 | Q32: 144
B33: 26 | C33: A201 | D33: ALLAICO JOSE EMILIO | E33: C439 | F33: SAN CARLOS | H33: 73.6 | J33: 67.2 | Q33: 140.8
B34: 27 | C34: A215 | D34: COELLAR GONZALEZ PEDRO | E34: C438 | F34: MC LUCAS | H34: 73.6 | J34: 67.2 | Q34: 140.8
B35: 28 | C35: A067 | D35: CANDO MARIO | E35: C369 | F35: AS ANGUS | O35: 68.8 | P35: 68.8 | Q35: 137.6
B36: 29 | C36: A067 | D36: CANDO MARIO | E36: C454 | F36: MD YALA | J36: 134.4 | Q36: 134.4
B37: 30 | C37: A081 | D37: KOPPEL OSWALDO | E37: C282 | F37: MAGIC MENES | J37: 134.4 | Q37: 134.4
B38: 31 | C38: A059 | D38: ALMEIDA AYALA HECTOR | E38: C114 | F38: KAFIR HA | G38: 130.24 | Q38: 130.24
B39: 32 | C39: A171 | D39: VELEZ MENA MARIA CONSUELO | E39: C234 | F39: EL PADRINO | L39: 130 | Q39: 130
B40: 33 | C40: A046 | D40: MAURICIO NOBOA | E40: C288 | F40: LIA | P40: 129.6 | Q40: =SUM(G40:P40) -> 129.6
B41: 34 | C41: A219 | D41: MAHNKE LIESEL | E41: C385 | F41: MANDY | K41: 64.64 | L41: 64 | Q41: 128.64
B42: 35 | C42: A220 | D42: TUTIVEN LUIS | E42: C243 | F42: PAVITA | K42: 64.64 | L42: 64 | Q42: 128.64
B43: 36 | C43: A125 | D43: FALCONI FRANCISCO | E43: C174 | F43: ZT SATFANDU | K43: 128.32 | Q43: 128.32
B44: 37 | C44: A178 | D44: JUAN CARLOS ANDRADE | E44: C243 | F44: PAVITA | P44: 86 | Q44: 86
B45: 38 | C45: J055 | D45: LOYOLA CLAUDIA MARIA | E45: C197 | F45: PATACON | L45: 80 | Q45: 80
B46: 39 | C46: J063 | D46: GONZALEZ BERNARDA | E46: C333 | F46: KADIN | L46: 76 | Q46: 76
B47: 40 | C47: A218 | D47: UGALDE LORENA | E47: C444 | F47: QUINA | H47: 73.6 | Q47: 73.6
B48: 41 | C48: A171 | D48: VELEZ MENA MARIA CONSUELO | E48: C441 | F48: SANTOO | H48: 73.6 | Q48: 73.6
B49: 42 | C49: A057 | D49: DAVILA JUAN DIEGO | E49: C502 | F49: MONARCH | O49: 68.8 | Q49: 68.8
B50: 43 | C50: A125 | D50: FALCONI FRANCISCO | E50: C140 | F50: SC SADIQ | O50: 68.8 | Q50: 68.8
B51: 44 | C51: A026 | D51: JOSE LETORT | E51: C370 | F51: JEREZ | P51: 68.8 | Q51: 68.8
B52: 45 | C52: A236 | D52: JUNE TATE | E52: C372 | F52: SHAKIRA CMB | P52: 68.8 | Q52: 68.8
B53: 46 | C53: A301 | D53: SIMON PEREZ | E53: C371 | F53: BLACK | P53: 68.8 | Q53: 68.8
B54: 47 | C54: A200 | D54: MALO DIANA | E54: C441 | F54: SANTOO | J54: 67.2 | Q54: 67.2
B55: 48 | C55: A223 | D55: MORENO MILTON GABRIEL | E55: C206 | F55: AS GITANA | J55: 67.2 | Q55: 67.2
B56: 49 | C56: A218 | D56: TRUEBA VICTORIA | E56: C438 | F56: MC JULIA | K56: 64.64 | Q56: 64.64
B57: 50 | C57: A081 | D57: KOPPEL OSWALDO | E57: C405 | F57: SOLOANDA | L57: 64 | Q57: 64
B58: 51 | C58: A200 | D58: MALO DIANA | E58: C461 | F58: JULIA CMB | L58: 64 | Q58: 64
B59: 52 | Q59: =SUM(G59:P59) -> 0
B60: 53 | Q60: 0
B61: 54 | Q61: 0
B62: 55 | Q62: 0
B63: 56 | Q63: 0
B64: 57 | Q64: 0
B65: 58 | Q65: 0
B66: 59 | Q66: 0
B67: 60 | Q67: 0
B68: 61 | Q68: 0
B69: 62 | Q69: 0
B70: 63 | Q70: 0
B71: 64 | Q71: 0
B72: 65 | Q72: =SUM(G72:P72) -> 0
B73: 66 | Q73: 0
B74: 67 | Q74: 0
B75: 68 | Q75: =SUM(G75:P75) -> 0
B76: 69 | Q76: 0
B77: 70 | Q77: 0
B78: 71 | Q78: 0
B79: 72 | Q79: 0
B80: 73 | Q80: 0
B81: 74 | Q81: 0
B82: 75 | Q82: 0
B83: 76 | Q83: 0
B84: 77 | Q84: 0
B85: 78 | Q85: 0
B86: 79 | Q86: 0
B87: 80 | Q87: 0
B88: 81 | Q88: 0
B89: 82 | Q89: 0
B90: 83 | Q90: 0
B91: 84 | Q91: 0
B92: 85 | Q92: 0
B93: 86 | Q93: 0
B94: 87 | Q94: 0
B95: 88 | Q95: 0
B96: 89 | Q96: 0
B97: 90 | Q97: 0
B98: 91 | Q98: 0
B99: 92 | Q99: 0
B100: 93 | Q100: 0
B101: 94 | Q101: 0
B102: 95 | Q102: 0
B103: 96 | Q103: 0
B104: 97 | Q104: 0
B105: 98 | Q105: 0
B106: 99 | Q106: 0
B107: 100 | Q107: 0
B108: 101 | Q108: 0
B109: 102 | Q109: 0
B110: 103 | Q110: 0
B111: 104 | Q111: 0
B112: 105 | Q112: 0
B113: 106 | Q113: 0
B114: 107 | Q114: 0
B115: 108 | Q115: 0
B116: 109 | Q116: 0
B117: 110 | Q117: 0
B118: 111 | Q118: 0
B119: 112 | Q119: 0
B120: 113 | Q120: 0
B121: 114 | Q121: 0
B122: 115 | Q122: 0
B123: 116 | Q123: 0
B124: 117 | Q124: 0
B125: 118 | Q125: 0
B126: 119 | Q126: 0
B127: 120 | Q127: 0
B128: 121 | Q128: 0
B129: 122 | Q129: 0
B130: 123 | Q130: 0
B131: 124 | Q131: 0
B132: 125 | Q132: 0
B133: 126 | Q133: 0
B134: 127 | Q134: 0
B135: 128 | Q135: 0
B136: 129 | Q136: 0
B137: 130 | Q137: =SUM(G137:P137) -> 0
B138: 131 | Q138: 0
B139: 132 | Q139: 0
B140: 133 | Q140: 0
B141: 134 | Q141: 0
B142: 135 | Q142: 0
B143: 136 | Q143: 0
B144: 137 | Q144: 0
B145: 138 | Q145: 0
N165: =IF(L165>=60,"CLASIFICADO A 60 Km LIBRE y 80 Km NOVICIO",IF(L165>=40,"CLASIFICADO A 40 Km LIBRE y 60 Km NOVICIO","")) -> 

Sheet BINOMIOS LIVIANOS
B2: PUNTAJE ACUMULADO
B3: CATEGORÍA BINOMIOS LIVIANOS
B5: BINOMIOS LIVIANOS | G5: PUNTAJES
G6: 2016
C7: CODIGO | D7: JINETE | E7: CODIGO | F7: CABALLO | G7: I CHONE | H7: II CHONE | I7: III CHONE | J7: IV CHONE | K7: V CHONE | L7: VI CHONE | M7: VII CHONE | N7: VIII CHONE | O7: IX CHONE | P7: X CHONE | Q7: ACUMULADO
B8: 1 | C8: M047 | D8: MORABOWEN MOSQUERA CESAR | E8: C238 | F8: CALEÑA CMB | G8: 122 | H8: 126.8 | K8: 128.32 | N8: 128 | O8: 162 | P8: 162 | Q8: =SUM(G8:P8)-G8-H8 -> 580.32
B9: 2 | C9: J063 | D9: GONZALEZ BERNARDA | E9: C333 | F9: KADIN | L9: 76 | O9: 162 | P9: 242 | Q9: =SUM(G9:P9) -> 480
B10: 3 | C10: J063 | D10: GONZALEZ BERNARDA | E10: C394 | F10: POLACO | G10: 134.4 | J10: 134.4 | N10: 152 | Q10: 420.8
B11: 4 | C11: J055 | D11: LOYOLA CLAUDIA MARIA | E11: C404 | F11: KALA | G11: 168 | J11: 84 | K11: 160.4 | Q11: 412.4
B12: 5 | C12: J034 | D12: ANDRADE JOSE DANIEL | E12: C424 | F12: ANGOSTURA FRODO | K12: 320 | Q12: 320
B13: 6 | C13: J020 | D13: SERRANO FELIPE | E13: C136 | F13: FHARA CONEJA | K13: 160 | N13: 160 | Q13: 320
B14: 7 | C14: J096 | D14: LOYOLA TEODORO ANDRES | E14: C209 | F14: AISHA | G14: 0.3020833333 | H14: 0.6482291667 | I14: 0.2628125 | J14: 0.003387345679 | K14: 144 | N14: 144 | Q14: 289.2165123
B15: 8 | C15: M051 | D15: DAVALOS JORGE EDUARDO | E15: C101 | F15: CARAMELO CMB | G15: 73.6 | H15: 68.96 | K15: 64.64 | N15: 64 | Q15: 271.2
B16: 9 | C16: J055 | D16: LOYOLA CLAUDIA MARIA | E16: C197 | F16: PATACON | L16: 80 | P16: 162 | Q16: 242
B17: 10 | C17: J034 | D17: ANDRADE JOSE DANIEL | E17: C406 | F17: ELECTRIFY VO | G17: 134.4 | L17: 64 | Q17: 198.4
B18: 11 | C18: J008 | D18: GOMEZ ALEXANDER | E18: C436 | F18: TAKARI CSE | K18: 64.64 | P18: 129.6 | Q18: 194.24
B19: 12 | C19: J034 | D19: ANDRADE JOSE DANIEL | E19: C134 | F19: JUPITER | J19: 168 | Q19: 168
B20: 13 | C20: J096 | D20: LOYOLA TEODORO ANDRES | E20: C234 | F20: EL PADRINO | P20: 153.9 | Q20: 153.9
B21: 14 | C21: J063 | D21: GONZALES BERNARDA | E21: C004 | F21: TEQUILA | K21: 152.38 | Q21: 152.38
B22: 15 | C22: J021 | D22: CORNEJO MANUEL | E22: C206 | F22: AS GITANA | K22: 144.36 | Q22: 144.36
B23: 16 | C23: J111 | D23: DAVALOS JOAQUINA | E23: C445 | F23: ANGOSTURA FRODO | G23: 134.4 | Q23: 134.4
B24: 17 | C24: J109 | D24: DARQUEA ANA MARIA | E24: C387 | F24: AGUARDIENTICO | G24: 130.24 | Q24: 130.24
B25: 18 | C25: J108 | D25: DAVALOS JOAQUINA | E25: C175 | F25: CLAW | G25: 130.24 | Q25: 130.24
B26: 19 | C26: J079 | D26: JARAMILLO MANUELA | E26: C404 | F26: SALMA | G26: 130.24 | Q26: 130.24
B27: 20 | C27: J114 | D27: MAZAPANTA KEVIN | E27: C085 | F27: BLACK | G27: 130.24 | Q27: 130.24
B28: 21 | C28: J020 | D28: SERRANO MANUELA | E28: C427 | F28: FLACA | G28: 130.24 | Q28: 130.24
B29: 22 | C29: J118 | D29: SALTIVERI MARIA JESUS | E29: C334 | F29: CAPORAL | Q29: 129.6
B30: 23 | C30: J200 | D30: MAZAPANTA LUIS | E30: C376 | F30: NABU | P30: 129.6 | Q30: =SUM(G30:P30) -> 129.6
B31: 24 | C31: J011 | D31: LETORT BERNARDA | E31: C154 | F31: SHAKIRA | O31: 126 | Q31: 126
B32: 25 | C32: J095 | D32: BERREZUETA PABLO SANTIAGO | E32: C130 | F32: ESPIRITU DEL ECUADOR | N32: 80 | Q32: 80
B33: 26 | C33: J100 | D33: HURTADO HECTOR | E33: C074 | F33: WISKY | N33: 76 | Q33: 76
B34: 27 | C34: J096 | D34: LOYOLA TEODORO ANDRES | E34: C443 | F34: ZAHIRA | G34: 73.6 | Q34: 73.6
B35: 28 | C35: J021 | D35: CORNEJO MANUEL | E35: C418 | F35: NABU | G35: 68.96 | Q35: 68.96
B36: 29 | C36: J065 | D36: ESPINOZA BARBARA | E36: C188 | F36: ANGOSTURA FRODO | G36: 68.96 | Q36: 68.96
B37: 30 | C37: J112 | D37: LEON JUAN | E37: C417 | F37: MANDI CMB | G37: 68.96 | Q37: 68.96
B38: 31 | C38: J200 | D38: MAZAPANTA LUIS | E38: C416 | F38: CARRUZO | G38: 68.96 | Q38: 68.96
B39: 32 | C39: J096 | D39: LOYOLA TEODORO ANDRES | E39: C278 | F39: JUGUETE | J39: 67.2 | Q39: 67.2
B40: 33 | C40: J112 | D40: PAREDES EDWIN | E40: C085 | F40: BLACK | K40: 64.64 | Q40: 64.64
B41: 34 | C41: A241 | D41: AYMARA SANDRO | E41: C446 | F41: MANDY | N41: 64 | Q41: 64
B42: 35 | C42: J117 | D42: CANDELARIO ARREAGA WAGNER | E42: C462 | F42: SERENA | L42: 64 | Q42: 64
B43: 36 | C43: J099 | D43: DARQUEA ANA MARIA | E43: C459 | F43: GALAN AMDD | L43: 64 | Q43: 64
B44: 37 | Q44: =SUM(G44:P44) -> 0
B45: 38 | Q45: 0
B46: 39 | Q46: 0
B47: 40 | Q47: 0
B48: 41 | Q48: 0
B49: 42 | Q49: 0
B50: 43 | Q50: 0
B51: 44 | Q51: 0
B52: 45 | Q52: 0
B53: 46 | Q53: 0
B54: 47 | Q54: 0
B55: 48 | Q55: 0
B56: 49 | Q56: 0
B57: 50 | Q57: 0
B58: 51 | Q58: 0
B59: 52 | Q59: 0
B60: 53 | Q60: 0
B61: 54 | Q61: 0
B62: 55 | Q62: 0
B63: 56 | Q63: 0
B64: 57 | Q64: 0
B65: 58 | Q65: 0
B66: 59 | Q66: 0
B67: 60 | Q67: 0
B68: 61 | Q68: 0
B69: 62 | Q69: 0
B70: 63 | Q70: 0
B71: 64 | Q71: =SUM(G71:P71) -> 0
B72: 65 | Q72: 0
B73: 66 | Q73: 0
B74: 67 | Q74: 0
B75: 68 | Q75: 0
B76: 69 | Q76: 0
B77: 70 | Q77: 0
B78: 71 | Q78: 0
B79: 72 | Q79: 0
B80: 73 | Q80: 0
B81: 74 | Q81: 0
B82: 75 | Q82: 0
B83: 76 | Q83: 0
B84: 77 | Q84: 0
B85: 78 | Q85: 0
B86: 79 | Q86: 0
B87: 80 | Q87: 0
B88: 81 | Q88: 0
B89: 82 | Q89: 0
B90: 83 | Q90: 0
B91: 84 | Q91: 0
B92: 85 | Q92: 0
B93: 86 | Q93: 0
B94: 87 | Q94: 0
B95: 88 | Q95: 0
B96: 89 | Q96: 0
B97: 90 | Q97: 0
B98: 91 | Q98: 0
B99: 92 | Q99: 0
B100: 93 | Q100: 0
B101: 94 | Q101: 0
B102: 95 | Q102: 0
B103: 96 | Q103: 0
B104: 97 | Q104: 0
B105: 98 | Q105: 0
B106: 99 | Q106: 0
B107: 100 | Q107: 0
B108: 101 | Q108: 0
B109: 102 | Q109: 0
B110: 103 | Q110: 0
B111: 104 | Q111: 0
B112: 105 | Q112: 0
B113: 106 | Q113: 0
B114: 107 | Q114: 0
B115: 108 | Q115: 0
B116: 109 | Q116: 0
B117: 110 | Q117: 0
B118: 111 | Q118: 0
B119: 112 | Q119: 0
B120: 113 | Q120: 0
B121: 114 | Q121: 0
B122: 115 | Q122: 0
B123: 116 | Q123: 0
B124: 117 | Q124: 0
B125: 118 | Q125: 0
B126: 119 | Q126: 0
B127: 120 | Q127: 0
B128: 121 | Q128: 0
B129: 122 | Q129: 0
B130: 123 | Q130: 0
B131: 124 | Q131: 0
B132: 125 | Q132: 0
B133: 126 | Q133: 0
B134: 127 | Q134: 0
B135: 128 | Q135: =SUM(G135:P135) -> 0
B136: 129 | Q136: 0
B137: 130 | Q137: 0
B138: 131 | Q138: 0
B139: 132 | Q139: 0
B140: 133 | Q140: 0
B141: 134 | Q141: 0
B142: 135 | Q142: 0
B143: 136 | Q143: 0
B144: 137 | Q144: 0
B145: 138 | Q145: 0
N165: =IF(L165>=60,"CLASIFICADO A 60 Km LIBRE y 80 Km NOVICIO",IF(L165>=40,"CLASIFICADO A 40 Km LIBRE y 60 Km NOVICIO","")) -> 

Sheet PR MASTER
B2: PUNTAJE ACUMULADO
B3: CATEGORÍA PROMOCIONAL ABIERTA
B5: PROMOCIONAL MASTER | E5: PUNTAJES
E6: 2016
C7: CODIGO | D7: JINETE | E7: I CHONE | F7: II CHONE | G7: III CHONE | H7: IV CHONE | I7: V CHONE | J7: VI CHONE | K7: VII CHONE | L7: VIII CHONE | M7: IX CHONE | N7: X CHONE | O7: ACUMULADO
B8: 1 | C8: A024 | D8: RECALDE GALO | I8: 64.64 | O8: =SUM(E8:N8) -> 64.64
B9: 2 | O9: 0
B10: 3 | O10: 0
B11: 4 | O11: 0
B12: 5 | O12: 0
B13: 6 | O13: 0
B14: 7 | O14: 0
B15: 8 | O15: 0
B16: 9 | O16: 0
B17: 10 | O17: 0
B18: 11 | O18: 0
B19: 12 | O19: 0
B20: 13 | O20: 0
B21: 14 | O21: 0
B22: 15 | O22: =SUM(E22:N22) -> 0
B23: 16 | O23: 0
B24: 17 | O24: 0
B25: 18 | O25: 0
B26: 19 | O26: 0
B27: 20 | O27: 0
B28: 21 | O28: 0
B29: 22 | O29: 0
B30: 23 | O30: 0
B31: 24 | O31: 0
B32: 25 | O32: 0
B33: 26 | O33: 0
B34: 27 | O34: 0
B35: 28 | O35: 0
L37: =IF(J37>=60,"CLASIFICADO A 60 Km LIBRE y 80 Km NOVICIO",IF(J37>=40,"CLASIFICADO A 40 Km LIBRE y 60 Km NOVICIO","")) -> 
L55: =IF(J55>=60,"CLASIFICADO A 60 Km LIBRE y 80 Km NOVICIO",IF(J55>=40,"CLASIFICADO A 40 Km LIBRE y 60 Km NOVICIO","")) -> 

Sheet PR ABIERTA
B2: PUNTAJE ACUMULADO
B3: CATEGORÍA PROMOCIONAL ABIERTA
B5: PROMOCIONAL ABIERTA | E5: PUNTAJES
E6: 2016
C7: CODIGO | D7: JINETE | E7: I CHONE | F7: II CHONE | G7: III CHONE | H7: IV CHONE | I7: V CHONE | J7: VI CHONE | K7: VII CHONE | L7: VIII CHONE | M7: IX CHONE | N7: X CHONE | O7: ACUMULADO
B8: 1 | C8: A247 | D8: ESTRADA CARLOS | I8: 32.32 | M8: 68.8 | N8: 68.8 | O8: =SUM(E8:N8) -> 169.92
B9: 2 | C9: A196 | D9: MONCAYO FERNANDO | I9: 58.176 | M9: 65.36 | O9: 123.536
B10: 3 | C10: A089 | D10: ORTIZ FERNANDO | E10: 68.96 | O10: 68.96
B11: 4 | C11: A010 | D11: HIDALGO GUSTAVO | E11: 65.512 | O11: 65.512
B12: 5 | C12: A213 | D12: MARIO ROSAS | N12: 65.36 | O12: 65.36
B13: 6 | C13: A213 | D13: ROSAS MARIO | I13: 64.64 | O13: 64.64
B14: 7 | C14: A197 | D14: CORO CH RODRIGO | M14: 32 | N14: 32 | O14: 64
B15: 8 | C15: A065 | D15: MENESES FELIPE | E15: 62.064 | O15: 62.064
B16: 9 | C16: A050 | D16: ALZAMORA MA CECILIA | I16: 61.408 | O16: 61.408
B17: 10 | C17: A103 | D17: CANDELEJO NELSON | I17: 54.944 | O17: 54.944
B18: 11 | C18: A216 | D18: MORILLLO VALENTINA | E18: 32.48 | O18: 32.48
B19: 12 | C19: A217 | D19: QUIÑONES DIEGO MARTIN | E19: 30.856 | O19: 30.856
B20: 13 | C20: A216 | D20: CABEZAS OSCAR | I20: 30.704 | O20: 30.704
B21: 14 | C21: A248 | D21: NOROÑA JESSICA | M21: 30.4 | O21: 30.4
B22: 15 | C22: A218 | D22: MANCHENO DANIEL | E22: 29.232 | O22: 29.232
B23: 16 | C23: A217 | D23: DE MORA HENRY | I23: 29.088 | O23: 29.088
B24: 17 | C24: A219 | D24: DAVALOS EDUARDO | E24: 27.608 | O24: 27.608
B25: 18 | O25: =SUM(E25:N25) -> 0
B26: 19 | O26: 0
B27: 20 | O27: 0
B28: 21 | O28: 0
B29: 22 | O29: 0
B30: 23 | O30: 0
B31: 24 | O31: 0
B32: 25 | O32: 0
B33: 26 | O33: 0
B34: 27 | O34: 0
B35: 28 | O35: 0
L37: =IF(J37>=60,"CLASIFICADO A 60 Km LIBRE y 80 Km NOVICIO",IF(J37>=40,"CLASIFICADO A 40 Km LIBRE y 60 Km NOVICIO","")) -> 
L55: =IF(J55>=60,"CLASIFICADO A 60 Km LIBRE y 80 Km NOVICIO",IF(J55>=40,"CLASIFICADO A 40 Km LIBRE y 60 Km NOVICIO","")) -> 

Sheet PR JUVENIL
B2: PUNTAJE ACUMULADO
B3: CATEGORÍA PROMOCIONAL JUVENIL
B5: PROMOCIONAL JUVENIL | E5: PUNTAJES
E6: 2016
C7: CODIGO | D7: JINETE | E7: I CHONE | F7: II CHONE | G7: III CHONE | H7: IV CHONE | I7: V CHONE | J7: VI CHONE | K7: VII CHONE | L7: VIII CHONE | M7: IX CHONE | N7: X CHONE | O7: ACUMULADO
B8: 1 | C8: J105 | D8: NOROÑA JORDAN | M8: 68.8 | O8: =SUM(E8:N8) -> 68.8
B9: 2 | C9: J040 | D9: GABRIEL DARQUEA | N9: 68.8 | O9: 68.8
B10: 3 | C10: J116 | D10: BARBARA ESPINOZA | N10: 65.36 | O10: 65.36
B11: 4 | C11: J115 | D11: JHON CANDELEJO | N11: 32 | O11: 32
B12: 5 | O12: 0
B13: 6 | O13: 0
B14: 7 | O14: 0
B15: 8 | O15: 0
B16: 9 | O16: 0
B17: 10 | O17: 0
B18: 11 | O18: 0
B19: 12 | O19: 0
B20: 13 | O20: =SUM(E20:N20) -> 0
B21: 14 | O21: 0
B22: 15 | O22: 0
B23: 16 | O23: 0
B24: 17 | O24: 0
B25: 18 | O25: 0
B26: 19 | O26: 0
B27: 20 | O27: 0
B28: 21 | O28: 0
B29: 22 | O29: 0
B30: 23 | O30: 0
L32: =IF(J32>=60,"CLASIFICADO A 60 Km LIBRE y 80 Km NOVICIO",IF(J32>=40,"CLASIFICADO A 40 Km LIBRE y 60 Km NOVICIO","")) -> 
L50: =IF(J50>=60,"CLASIFICADO A 60 Km LIBRE y 80 Km NOVICIO",IF(J50>=40,"CLASIFICADO A 40 Km LIBRE y 60 Km NOVICIO","")) -> 

Sheet PR MENORES
B2: PUNTAJE ACUMULADO
B3: CATEGORÍA PROMOCIONAL MENORES
B5: PROMOCIONAL MENORES | E5: PUNTAJES
E6: 2016
C7: CODIGO | D7: JINETE | E7: I CHONE | F7: II CHONE | G7: III CHONE | H7: IV CHONE | I7: V CHONE | J7: VI CHONE | K7: VII CHONE | L7: VIII CHONE | M7: IX CHONE | N7: X CHONE | O7: ACUMULADO
B8: 1 | C8: M028 | D8: CORREA JUAN MARTIN | M8: 28.8 | N8: 32 | O8: =SUM(E8:N8) -> 60.8
B9: 2 | C9: M031 | D9: ESPINOZA NATALIA | I9: 58.176 | O9: =SUM(E9:N9) -> 58.176
B10: 3 | C10: I019 | D10: CASTILLO DAFNE | M10: 32 | O10: =SUM(E10:N10) -> 32
B11: 4 | C11: I044 | D11: MOYA MILENA | M11: 30.4 | O11: =SUM(E11:N11) -> 30.4
B12: 5 | O12: =SUM(E12:N12) -> 0
B13: 6 | O13: 0
B14: 7 | O14: 0
B15: 8 | O15: 0
B16: 9 | O16: 0
B17: 10 | O17: 0
B18: 11 | O18: 0
B19: 12 | O19: 0
B20: 13 | O20: 0
B21: 14 | O21: 0
B22: 15 | O22: 0
B23: 16 | O23: 0
B24: 17 | O24: 0
B25: 18 | O25: 0
B26: 19 | O26: 0
B27: 20 | O27: 0
B28: 21 | O28: 0
B29: 22 | O29: 0
B30: 23 | O30: 0
L32: =IF(J32>=60,"CLASIFICADO A 60 Km LIBRE y 80 Km NOVICIO",IF(J32>=40,"CLASIFICADO A 40 Km LIBRE y 60 Km NOVICIO","")) -> 
L50: =IF(J50>=60,"CLASIFICADO A 60 Km LIBRE y 80 Km NOVICIO",IF(J50>=40,"CLASIFICADO A 40 Km LIBRE y 60 Km NOVICIO","")) -> 

Sheet PR INFANTIL
B2: PUNTAJE ACUMULADO
B3: CATEGORÍA PROMOCIONAL INFANTIL
B5: PROMOCIONAL INFANTIL | E5: PUNTAJES
E6: 2016
C7: CODIGO | D7: JINETE | E7: I CHONE | F7: II CHONE | G7: III CHONE | H7: IV CHONE | I7: V CHONE | J7: VI CHONE | K7: VII CHONE | L7: VIII CHONE | M7: IX CHONE | N7: X CHONE | O7: ACUMULADO
B8: 1 | O8: =SUM(E8:N8) -> 0
B9: 2 | O9: 0
B10: 3 | O10: 0
B11: 4 | O11: 0
B12: 5 | O12: =SUM(E12:N12) -> 0
B13: 6 | O13: 0
B14: 7 | O14: 0
B15: 8 | O15: 0
B16: 9 | O16: 0
B17: 10 | O17: 0
B18: 11 | O18: 0
B19: 12 | O19: 0
B20: 13 | O20: 0
B21: 14 | O21: 0
B22: 15 | O22: 0
B23: 16 | O23: 0
B24: 17 | O24: 0
B25: 18 | O25: 0
B26: 19 | O26: 0
B27: 20 | O27: 0
B28: 21 | O28: 0
B29: 22 | O29: 0
B30: 23 | O30: 0
L32: =IF(J32>=60,"CLASIFICADO A 60 Km LIBRE y 80 Km NOVICIO",IF(J32>=40,"CLASIFICADO A 40 Km LIBRE y 60 Km NOVICIO","")) -> 
L50: =IF(J50>=60,"CLASIFICADO A 60 Km LIBRE y 80 Km NOVICIO",IF(J50>=40,"CLASIFICADO A 40 Km LIBRE y 60 Km NOVICIO","")) -> 

Sheet PR ADULTO-MENOR
B2: PUNTAJE ACUMULADO
B3: CATEGORÍA PROMOCIONAL ADULTO/MENOR
B5: BINOMIOS ABIERTA | E5: PUNTAJES
E6: 2016
C7: MENOR | D7: ADULTOS | E7: I CHONE | F7: II CHONE | G7: III CHONE | H7: IV CHONE | I7: V CHONE | J7: VI CHONE | K7: VII CHONE | L7: VIII CHONE | M7: IX CHONE | N7: X CHONE | O7: ACUMULADO
B8: 1 | C8: CASTILLO DAFNE | O8: 64.64
B9: 2 | C9: SERRANO OLIVIA | E9: 32.48 | I9: 30.704 | O9: =SUM(E9:N9) -> 63.184
B10: 3 | C10: JARA RAFAELA | I10: 32.32 | O10: 32.32
B11: 4 | C11: MOYA MARTINA | N11: 32 | O11: 32
B12: 5 | C12: CORREA DAVID | E12: 29.232 | O12: 29.232
B13: 6 | C13: DARQUEA EMILIO | I13: 29.088 | O13: 29.088
B14: 7 | C14: DIAZ DAIRA | E14: 27.608 | O14: 27.608
B15: 8 | C15: MOYA MILENA | E15: 21.112 | O15: 21.112
B16: 9 | O16: =SUM(E16:N16) -> 0
B17: 10 | O17: 0
B18: 11 | O18: 0
B19: 12 | O19: 0
B20: 13 | O20: 0
B21: 14 | O21: 0
B22: 15 | O22: 0
B23: 16 | O23: 0
B24: 17 | O24: 0
B25: 18 | O25: 0
B26: 19 | O26: 0
B27: 20 | O27: 0
B28: 21 | O28: 0
B29: 22 | O29: 0
B30: 23 | O30: 0
B31: 24 | O31: 0
B32: 25 | O32: 0
B33: 26 | O33: 0
B34: 27 | O34: 0
B35: 28 | O35: 0
B36: 29 | O36: 0
B37: 30 | O37: 0
B38: 31 | O38: 0
B39: 32 | O39: 0
B40: 33 | O40: 0
B41: 34 | O41: 0
B42: 35 | O42: 0
B43: 36 | O43: 0
B44: 37 | O44: 0
B45: 38 | O45: 0
B46: 39 | O46: 0
B47: 40 | O47: 0
B48: 41 | O48: 0
B49: 42 | O49: 0
B50: 43 | O50: 0
B51: 44 | O51: 0
B52: 45 | O52: 0
B53: 46 | O53: 0
B54: 47 | O54: 0
B55: 48 | O55: 0
B56: 49 | O56: 0
B57: 50 | O57: 0
B58: 51 | O58: 0
B59: 52 | O59: 0
B60: 53 | O60: 0
B61: 54 | O61: 0
B62: 55 | O62: 0
B63: 56 | O63: 0
B64: 57 | O64: 0
B65: 58 | O65: 0
B66: 59 | O66: =SUM(E66:N66) -> 0
B67: 60 | O67: 0
B68: 61 | O68: 0
B69: 62 | O69: 0
B70: 63 | O70: 0
B71: 64 | O71: 0
B72: 65 | O72: 0
B73: 66 | O73: 0
B74: 67 | O74: =SUM(E74:N74) -> 0
B75: 68 | O75: 0
B76: 69 | O76: 0
B77: 70 | O77: 0
B78: 71 | O78: 0
B79: 72 | O79: 0
B80: 73 | O80: 0
B81: 74 | O81: 0
B82: 75 | O82: 0
B83: 76 | O83: 0
B84: 77 | O84: 0
B85: 78 | O85: 0
B86: 79 | O86: 0
B87: 80 | O87: 0
B88: 81 | O88: 0
B89: 82 | O89: 0
B90: 83 | O90: 0
B91: 84 | O91: 0
B92: 85 | O92: 0
B93: 86 | O93: 0
B94: 87 | O94: 0
B95: 88 | O95: 0
B96: 89 | O96: 0
B97: 90 | O97: 0
B98: 91 | O98: 0
B99: 92 | O99: 0
B100: 93 | O100: 0
B101: 94 | O101: 0
B102: 95 | O102: 0
B103: 96 | O103: 0
B104: 97 | O104: 0
B105: 98 | O105: 0
B106: 99 | O106: 0
B107: 100 | O107: 0
B108: 101 | O108: 0
B109: 102 | O109: 0
B110: 103 | O110: 0
B111: 104 | O111: 0
B112: 105 | O112: 0
B113: 106 | O113: 0
B114: 107 | O114: 0
B115: 108 | O115: 0
B116: 109 | O116: 0
B117: 110 | O117: 0
B118: 111 | O118: 0
B119: 112 | O119: 0
B120: 113 | O120: 0
B121: 114 | O121: 0
B122: 115 | O122: 0
B123: 116 | O123: 0
B124: 117 | O124: 0
B125: 118 | O125: 0
B126: 119 | O126: 0
B127: 120 | O127: 0
B128: 121 | O128: 0
B129: 122 | O129: 0
B130: 123 | O130: 0
B131: 124 | O131: 0
B132: 125 | O132: 0
B133: 126 | O133: 0
B134: 127 | O134: 0
B135: 128 | O135: 0
B136: 129 | O136: 0
B137: 130 | O137: 0
B138: 131 | O138: =SUM(E138:N138) -> 0
B139: 132 | O139: 0
B140: 133 | O140: 0
B141: 134 | O141: 0
B142: 135 | O142: 0
B143: 136 | O143: 0
B144: 137 | O144: 0
B145: 138 | O145: 0
L165: =IF(J165>=60,"CLASIFICADO A 60 Km LIBRE y 80 Km NOVICIO",IF(J165>=40,"CLASIFICADO A 40 Km LIBRE y 60 Km NOVICIO","")) -> 
